Service,Expense Subtype,Merchant Name,Expense Invoice Date,Total Expense
NEIGHBOURHOODS,Building-Others,FORTRESS MASTER LOCKSMITH,01/04/2017,65.30
LIBRARIES & ARCHIVE,Travel/Subsistence,OYSTER AUTOTOPUP,02/04/2017,40.00
HOUSING MANAGEMENT SERVICES,Building-Electrical,MERLIN LAZER LTD,03/04/2017,151.00
HOUSING MANAGEMENT SERVICES,Catering Food & Drink,TESCO STORES 6231,03/04/2017,13.83
HOUSING MANAGEMENT SERVICES,Domestic Goods-Other,JOHN LEWIS,03/04/2017,24.42
HOUSING MANAGEMENT SERVICES,Financial Services,GRO HM PASSPORT OFFICE,03/04/2017,-9.25
HOUSING MANAGEMENT SERVICES,Financial Services,GRO HM PASSPORT OFFICE,03/04/2017,-18.50
HOUSING MANAGEMENT SERVICES,Furniture-Office Furniture,POSTURITE (UK) LTD,03/04/2017,387.78
HOUSING MANAGEMENT SERVICES,Horticultural-Seeds & Plants,LOLA FLOWER BOUTIQUE,03/04/2017,80.00
NEIGHBOURHOODS,Building-Others,FORTRESS MASTER LOCKSMITH,03/04/2017,69.93
BALANCE SHEET,Personal,Amazon UK Marketplace,04/04/2017,-76.25
BUSINESS TRANSFORMATION,IT Hardware,Amazon UK Marketplace,04/04/2017,381.24
BUSINESS TRANSFORMATION,Vehicle Hire,Amazon UK Marketplace,04/04/2017,0.00
HOUSING MANAGEMENT SERVICES,Building-Electrical,SOUTHERN ELECTRIC,04/04/2017,266.42
INTERNAL AUDIT,Financial Services,GRO HM PASSPORT OFFICE,04/04/2017,37.00
INTERNAL AUDIT,Travel/Subsistence,TFL ROAD CHARGE,04/04/2017,11.50
INTERNAL AUDIT,Travel/Subsistence,TFL ROAD CHARGE,04/04/2017,11.50
NEIGHBOURHOODS,Use of Public Transport,LUL TICKET MACHINE,04/04/2017,50.00
TENANT MANAGEMENT ORGANISATIONS,Vehicle Fuel,TESCO PFS 2161,04/04/2017,19.40
VALUATION & STRATEGIC PROPERTY SERVICES,Legal Services-Other,THACKRAY WILLIAMS SOLI,04/04/2017,"4,398.93"
LIBRARIES & ARCHIVE,Catering Food & Drink,TESCO STORES 6791,05/04/2017,8.90
YOUTH OFFENDING SERVICE,Public Transport,BRIXTONHILL EXPRESS,05/04/2017,200.50
HOUSING MANAGEMENT SERVICES,Building-General,UKTOOLCENTRE,06/04/2017,13.33
HOUSING MANAGEMENT SERVICES,Financial Services,LAMBETH INTERNET PAYM,06/04/2017,48.80
INTERNAL AUDIT,Travel/Subsistence,TRAINLINE,06/04/2017,34.43
LIBRARIES & ARCHIVE,Education-Library Books,Amazon UK Marketplace,06/04/2017,3.45
LIBRARIES & ARCHIVE,Education-Library Books,Amazon UK Marketplace,06/04/2017,17.56
OTHER - ADULTS,Catering Food & Drink,SAINSBURY'S SMKT,06/04/2017,7.30
QUALITY ASSURANCE & PERFORMANCE,Catering Food & Drink,SAINSBURYS S/MKTS,06/04/2017,3.54
QUALITY ASSURANCE & PERFORMANCE,Catering Food & Drink,SAN MARINO,06/04/2017,6.60
QUALITY ASSURANCE & PERFORMANCE,Catering Food & Drink,SAN MARINO,06/04/2017,13.30
QUALITY ASSURANCE & PERFORMANCE,Travel/Subsistence,LONDON & SOUTH EAS,06/04/2017,5.00
QUALITY ASSURANCE & PERFORMANCE,Travel/Subsistence,OYSTER AUTOTOPUP,06/04/2017,40.00
QUALITY ASSURANCE & PERFORMANCE,Travel/Subsistence,OYSTER AUTOTOPUP,06/04/2017,40.00
QUALITY ASSURANCE & PERFORMANCE,Travel/Subsistence,OYSTER AUTOTOPUP,06/04/2017,40.00
QUALITY ASSURANCE & PERFORMANCE,Travel/Subsistence,OYSTER AUTOTOPUP,06/04/2017,40.00
QUALITY ASSURANCE & PERFORMANCE,Travel/Subsistence,OYSTER RENEW WEB,06/04/2017,10.00
QUALITY ASSURANCE & PERFORMANCE,Travel/Subsistence,TRAINLINE,06/04/2017,76.30
QUALITY ASSURANCE & PERFORMANCE,Travel/Subsistence,WWW.SOUTHEASTERNRAILWA,06/04/2017,50.00
HOUSING MANAGEMENT SERVICES,Books/Publications/Resources,FORTRESS MASTER LOCKSMITH,07/04/2017,29.25
HOUSING MANAGEMENT SERVICES,Charges and Penalties,J.B.W. GROUP LTD,07/04/2017,556.00
HOUSING MANAGEMENT SERVICES,Use of Public Transport,LUL TICKET MACHINE,07/04/2017,100.00
HOUSING MANAGEMENT SERVICES,Use of Public Transport,LUL TICKET MACHINE,07/04/2017,100.00
INTERNAL AUDIT,Consultancy-Business,FAST KEY SERVICES LIMI,07/04/2017,12.08
INTERNAL AUDIT,Travel/Subsistence,OYSTER BUS AUTOTOP,07/04/2017,40.00
NEIGHBOURHOODS,Building-Electrical,SCREWFIX DIRECT,07/04/2017,24.98
REGISTRAR SERVICES,Books/Publications/Resources,POST OFFICE SHOP,07/04/2017,67.99
REGISTRAR SERVICES,Books/Publications/Resources,THE POST OFFICE,07/04/2017,39.00
REGISTRAR SERVICES,Books/Publications/Resources,WWW.CARTRIDGEPEOPLE.CO,07/04/2017,77.60
REGISTRAR SERVICES,Charges and Penalties,GRO HM PASSPORT OFFICE,07/04/2017,0.00
REVENUE & BENEFITS,Legal Services-Other,HMCOURTS-SERVICE.G,07/04/2017,"3,978.00"
CORPORATE AFFAIRS,Taxi Fares,WWW.ADDISONLEE.COM,09/04/2017,32.30
CORPORATE AFFAIRS,Taxi Fares,WWW.ADDISONLEE.COM,09/04/2017,53.80
QUALITY ASSURANCE & PERFORMANCE,Travel/Subsistence,OYSTER AUTOTOPUP,09/04/2017,40.00
QUALITY ASSURANCE & PERFORMANCE,Travel/Subsistence,OYSTER AUTOTOPUP,09/04/2017,40.00
QUALITY ASSURANCE & PERFORMANCE,Travel/Subsistence,TRAINLINE,09/04/2017,-63.30
DAY CENTRES,Financial Services,NATWEST BANK /,10/04/2017,250.00
EARLY HELP,Books/Publications/Resources,Amazon Prime,10/04/2017,-79.00
NEIGHBOURHOODS,Building-General,ARMOUR LOCK AND SAFE,10/04/2017,54.40
OTHER - ADULTS,Catering Food & Drink,TESCO STORES 5999,10/04/2017,90.89
OTHER - ADULTS,Domestic Goods-Other,NEXT DAY CATERING EQUI,10/04/2017,472.54
OTHER - ADULTS,Domestic Goods-Other,TESCO - Seller_IST_1_2401,10/04/2017,11.99
CHILDREN LOOKED AFTER,Domestic Goods-Other,ARGOS RETAIL GROUP,11/04/2017,264.99
CHILDREN LOOKED AFTER,Facilities-Advertising,WEB 3 RESOURCE LTD,11/04/2017,42.00
CHILDREN LOOKED AFTER,Furniture-Domestic Furniture,IKEA ONLINE,11/04/2017,478.33
CORPORATE AFFAIRS,Travel/Subsistence,LUL TICKET MACHINE,11/04/2017,50.00
CORPORATE AFFAIRS,Travel/Subsistence,LUL TICKET MACHINE,11/04/2017,50.00
DAY CENTRES,Financial Services,CASH ADVANCE FEE,11/04/2017,7.38
FINANCIAL PLANNING AND MANAGEMENT,Domestic Goods-Other,WWW.ARGOS.CO.UK,11/04/2017,287.33
INTERNAL AUDIT,Car Parking,LB BEXLEY,11/04/2017,6.10
INTERNAL AUDIT,Car Parking,NCP PARKPASS ONLINE,11/04/2017,40.00
LIBRARIES & ARCHIVE,Books/Publications/Resources,NATIONWIDE /W0278Y,11/04/2017,200.00
CHILDREN LOOKED AFTER,Building-Floors,CONNECTIONFLOORINGLTD,12/04/2017,316.29
CHILDREN LOOKED AFTER,Domestic Goods-Other,ARGOS RETAIL GROUP,12/04/2017,791.93
CHILDREN LOOKED AFTER,Domestic Goods-Other,ARGOS RETAIL GROUP,12/04/2017,195.21
CHILDREN LOOKED AFTER,Domestic Goods-Other,WWW.ARGOS.CO.UK,12/04/2017,276.94
CHILDREN LOOKED AFTER,Domestic Goods-Other,CURRYS ONLINE,12/04/2017,384.00
CHILDREN LOOKED AFTER,Facilities-Design & Photography,BOOTSPHOTOUK*,12/04/2017,18.59
CHILDREN LOOKED AFTER,Facilities-Design & Photography,BOOTSPHOTOUK*,12/04/2017,7.65
CHILDREN LOOKED AFTER,Facilities-Design & Photography,BOOTSPHOTOUK*,12/04/2017,3.00
CHILDREN LOOKED AFTER,Financial Services,GRO HM PASSPORT OFFICE,12/04/2017,-76.65
CHILDREN LOOKED AFTER,Financial Services,GRO HM PASSPORT OFFICE,12/04/2017,27.75
CHILDREN LOOKED AFTER,Financial Services,GRO HM PASSPORT OFFICE,12/04/2017,76.65
CHILDREN LOOKED AFTER,Financial Services,GRO HM PASSPORT OFFICE,12/04/2017,37.00
CHILDREN LOOKED AFTER,Financial Services,GRO HM PASSPORT OFFICE,12/04/2017,23.40
CHILDREN LOOKED AFTER,Financial Services,HM PASSPORT,12/04/2017,174.00
CHILDREN LOOKED AFTER,Financial Services,HM PASSPORT OFFICE,12/04/2017,210.50
CHILDREN LOOKED AFTER,Financial Services,HM PASSPORT OFFICE,12/04/2017,72.50
CHILDREN LOOKED AFTER,Financial Services,HM PASSPORT OFFICE,12/04/2017,141.00
CHILDREN LOOKED AFTER,Financial Services,HM PASSPORT OFFICE,12/04/2017,72.50
CHILDREN LOOKED AFTER,Financial Services,LAMBETH INTERNET PAYM,12/04/2017,22.36
CHILDREN LOOKED AFTER,Furniture-Domestic Furniture,TIME4SLEEP LTD,12/04/2017,-388.99
DAY CENTRES,Financial Services,NATWEST BANK /,12/04/2017,400.00
DAY CENTRES,Financial Services,CASH ADVANCE FEE,12/04/2017,7.38
DAY CENTRES,Financial Services,SAINSBURYS CASH,12/04/2017,250.00
EMPLOYMENT & ENTERPRISE - E&L,Domestic Goods-Other,AMAZON UK RETAIL AMAZON.C,12/04/2017,21.51
EMPLOYMENT & ENTERPRISE - E&L,Domestic Goods-Other,GIFTVOUCHERSHOP.CO.UK,12/04/2017,100.99
EMPLOYMENT & ENTERPRISE - E&L,Domestic Goods-Other,GIFTVOUCHERSHOP.CO.UK,12/04/2017,917.00
EMPLOYMENT & ENTERPRISE - E&L,Education-Other,ET-FOUNDATION.COUK,12/04/2017,83.33
EMPLOYMENT & ENTERPRISE - E&L,Financial Services-Grants,LEARNING AND WORK INST,12/04/2017,100.00
EMPLOYMENT & ENTERPRISE - E&L,IT Services,PARTICIPANT UK LTD,12/04/2017,129.00
EMPLOYMENT & ENTERPRISE - E&L,Taxi Fares,WWW.ADDISONLEE.COM,12/04/2017,36.25
EMPLOYMENT & ENTERPRISE - E&L,Taxi Fares,WWW.ADDISONLEE.COM,12/04/2017,11.60
HOUSING MANAGEMENT SERVICES,Use of Public Transport,LUL TICKET MACHINE,12/04/2017,50.00
LIBRARIES & ARCHIVE,Books/Publications/Resources,CASH ADVANCE FEE,12/04/2017,5.90
NEIGHBOURHOODS,Building-General,SCREWFIX DIRECT,12/04/2017,59.81
"PLANNING, TRANSPORT & DEVELOPMENT",Consultancy-Business,PIPERS PROJECTS LTD,12/04/2017,179.00
"PLANNING, TRANSPORT & DEVELOPMENT",Facilities-Storage,ACCESS STORAG,12/04/2017,167.17
CHILDREN LOOKED AFTER,Domestic Goods-Other,ARGOS RETAIL GROUP,13/04/2017,716.92
CHILDREN LOOKED AFTER,Domestic Goods-Other,WWW.ARGOS.CO.UK,13/04/2017,353.94
CHILDREN LOOKED AFTER,Travel/Subsistence,EUROSTAR INTERNET,13/04/2017,416.50
DAY CENTRES,Financial Services,CASH ADVANCE FEE,13/04/2017,11.80
LIBRARIES & ARCHIVE,Education-Library Books,AMAZON UK RETAIL AMAZON.C,13/04/2017,9.99
LIBRARIES & ARCHIVE,Education-Library Books,Amazon UK Marketplace,13/04/2017,6.26
LIBRARIES & ARCHIVE,Education-Library Books,Amazon UK Marketplace,13/04/2017,2.01
LIBRARIES & ARCHIVE,Education-Library Books,Amazon UK Marketplace,13/04/2017,10.08
LIBRARIES & ARCHIVE,Education-Library Books,Amazon UK Marketplace,13/04/2017,3.13
LIBRARIES & ARCHIVE,Education-Library Books,Amazon UK Marketplace,13/04/2017,9.98
LIBRARIES & ARCHIVE,Education-Library Books,Amazon UK Retail,13/04/2017,9.99
LIBRARIES & ARCHIVE,Education-Library Books,BOOKS BEYOND WORDS,13/04/2017,85.49
LIBRARIES & ARCHIVE,Education-Supplies,WWW.JETTEC.COM,13/04/2017,44.35
NEIGHBOURHOODS,Domestic Goods-Other,ARGOS RETAIL GROUP,13/04/2017,29.99
NEIGHBOURHOODS,Travel/Subsistence,LONDON & SOUTH EAS,13/04/2017,5.00
NEIGHBOURHOODS,Travel/Subsistence,WWW.SOUTHEASTERNRAILWA,13/04/2017,60.00
NEIGHBOURHOODS,Travel/Subsistence,WWW.SOUTHEASTERNRAILWA,13/04/2017,100.00
"PLANNING, TRANSPORT & DEVELOPMENT",Legal Services-Other,ROYAL COURT OF JUS,13/04/2017,100.00
YOUTH OFFENDING SERVICE,Arts & Leisure Services,ELEPHANT CASTLE SUPERB,13/04/2017,122.34
YOUTH OFFENDING SERVICE,Arts & Leisure Services,ODEON,13/04/2017,104.46
YOUTH OFFENDING SERVICE,Arts & Leisure Services,SAINSBURY'S SMKT,13/04/2017,6.67
YOUTH OFFENDING SERVICE,Arts & Leisure Services,SAINSBURYS,13/04/2017,43.88
YOUTH OFFENDING SERVICE,Catering Food & Drink,LIDL UK,13/04/2017,15.00
YOUTH OFFENDING SERVICE,Catering Food & Drink,MARKS&SPENCER PLC SACA,13/04/2017,125.00
YOUTH OFFENDING SERVICE,Catering Food & Drink,MARKS&SPENCER PLC SACA,13/04/2017,56.37
YOUTH OFFENDING SERVICE,Catering Food & Drink,MARKS&SPENCER PLC SACA,13/04/2017,74.72
YOUTH OFFENDING SERVICE,Catering Food & Drink,MARKS&SPENCER PLC SACA,13/04/2017,43.75
YOUTH OFFENDING SERVICE,Catering Food & Drink,SAINSBURY'S SMKT,13/04/2017,200.00
YOUTH OFFENDING SERVICE,Catering Food & Drink,SAINSBURY'S SMKT,13/04/2017,23.84
YOUTH OFFENDING SERVICE,Catering Food & Drink,SAINSBURYS S/MKTS,13/04/2017,3.21
YOUTH OFFENDING SERVICE,Catering Food & Drink,SAINSBURYS S/MKTS,13/04/2017,258.34
YOUTH OFFENDING SERVICE,Catering Food & Drink,SAINSBURYS S/MKTS,13/04/2017,31.87
YOUTH OFFENDING SERVICE,Catering Food & Drink,TESCO STORES 5494,13/04/2017,106.67
YOUTH OFFENDING SERVICE,Domestic Goods-Other,POUNDLAND LTD,13/04/2017,11.88
YOUTH OFFENDING SERVICE,Domestic Goods-Other,POUNDLAND LTD 1203,13/04/2017,12.75
NEIGHBOURHOODS,Building-Electrical,SCREWFIX,15/04/2017,68.33
NEIGHBOURHOODS,Building-General,SCREWFIX DIRECT,15/04/2017,44.57
CHILDREN LOOKED AFTER,Furniture-Domestic Furniture,IKEA ONLINE,18/04/2017,94.00
EARLY HELP,Books/Publications/Resources,APT CLOTHING,18/04/2017,102.00
FINANCIAL PLANNING AND MANAGEMENT,Use of Public Transport,EXPRESS NEWS,18/04/2017,30.00
LIBRARIES & ARCHIVE,Education-Library Books,Amazon UK Marketplace,18/04/2017,23.78
LIBRARIES & ARCHIVE,Education-Library Books,Amazon UK Marketplace,18/04/2017,10.49
NEIGHBOURHOODS,Mail Services-Postage,THE POST OFFICE,18/04/2017,23.76
NEIGHBOURHOODS,Vehicle Maintenance,NOVADATA TACHOGRAPH AN,18/04/2017,128.60
"PLANNING, TRANSPORT & DEVELOPMENT",Education-Other,UAL SHORT COURSES LTD,18/04/2017,433.33
"PLANNING, TRANSPORT & DEVELOPMENT",Mail Services-Postage,POST OFFICE COUNTER,18/04/2017,8.25
"PLANNING, TRANSPORT & DEVELOPMENT",Taxi Fares,FASTER PAYMENT RECEIVED,18/04/2017,-1.83
"PLANNING, TRANSPORT & DEVELOPMENT",Taxi Fares,UBER LK FEB02 FXRRW HELP.,18/04/2017,1.83
"PLANNING, TRANSPORT & DEVELOPMENT",Travel/Subsistence,OYSTER AUTOTOPUP,18/04/2017,20.00
"PLANNING, TRANSPORT & DEVELOPMENT",Travel/Subsistence,TFL CYCLE HIRE,18/04/2017,2.00
REVENUE & BENEFITS,Books/Publications/Resources,PAYPAL *CPAG,18/04/2017,297.48
REVENUE & BENEFITS,Conference Expenses,WP-ASPIRE COACHING,18/04/2017,178.80
CHILDREN LOOKED AFTER,Domestic Goods-Other,CURRYS ONLINE,19/04/2017,404.99
DAY CENTRES,Catering Food & Drink,TESCO STORE 2764,19/04/2017,201.96
EARLY HELP,Use of Public Transport,WWW.SOUTHEASTERNRAILWA,19/04/2017,81.50
FINANCIAL PLANNING AND MANAGEMENT,Use of Public Transport,LUL TICKET MACHINE,19/04/2017,10.00
FINANCIAL PLANNING AND MANAGEMENT,Use of Public Transport,LUL TICKET MACHINE,19/04/2017,10.00
HUMAN RESOURCES & ORGANISATIONAL DEVELOPMENT,Facilities-Market Research,SURVEYMONKEY.COM,19/04/2017,300.00
HUMAN RESOURCES & ORGANISATIONAL DEVELOPMENT,IT Office Equipment,Amazon UK Marketplace,19/04/2017,96.00
HUMAN RESOURCES & ORGANISATIONAL DEVELOPMENT,Staff Recruitment costs,UKBA6557517301,19/04/2017,199.00
LIBRARIES & ARCHIVE,Education-Other,WWW.THEBOOKSELLER.COM,19/04/2017,196.00
POLICY & COMMUNICATIONS,Catering Food & Drink,SAINSBURYS S/MKTS,19/04/2017,133.90
POLICY & COMMUNICATIONS,Conference Expenses,REDACTIVE,19/04/2017,675.00
POLICY & COMMUNICATIONS,Conference Expenses,REDACTIVE,19/04/2017,"1,125.00"
POLICY & COMMUNICATIONS,Conference Expenses,REDACTIVE,19/04/2017,-270.00
POLICY & COMMUNICATIONS,IT Services,AMAZON MKTPLACE PMTS,19/04/2017,141.80
POLICY & COMMUNICATIONS,IT Services,HOOTSUITE MEDIA INC.,19/04/2017,5.97
POLICY & COMMUNICATIONS,IT Services,NATIONBUILDER,19/04/2017,48.74
POLICY & COMMUNICATIONS,IT Services,NATIONBUILDER,19/04/2017,48.91
POLICY & COMMUNICATIONS,IT Services,PANTHEON,19/04/2017,20.16
BALANCE SHEET,Personal,POST OFFICE COUNTER,20/04/2017,-5.37
CHILDREN LOOKED AFTER,Accommodation,HOLIDAY INN EXPRESS,20/04/2017,127.00
CHILDREN LOOKED AFTER,Domestic Goods-Other,AO RETAIL LIMITED,20/04/2017,598.32
CHILDREN LOOKED AFTER,Domestic Goods-Other,WWW.ARGOS.CO.UK,20/04/2017,299.99
CHILDREN LOOKED AFTER,Domestic Goods-Other,WWW.ARGOS.CO.UK,20/04/2017,318.93
CHILDREN LOOKED AFTER,Domestic Goods-Other,CURRYS ONLINE,20/04/2017,-214.99
CHILDREN LOOKED AFTER,Domestic Goods-Other,WWW.ARGOS.CO.UK,20/04/2017,469.99
CHILDREN LOOKED AFTER,Facilities-Retail,www.groupon.co.uk,20/04/2017,259.00
CHILDREN LOOKED AFTER,Facilities-Storage,KATOR STORAGE LTD,20/04/2017,104.70
CHILDREN LOOKED AFTER,Facilities-Storage,KATOR STORAGE LTD,20/04/2017,112.60
CHILDREN LOOKED AFTER,Facilities-Storage,SAFESTORE LIMITED,20/04/2017,110.62
CHILDREN LOOKED AFTER,Facilities-Storage,SAFESTORE LIMITED,20/04/2017,239.31
CHILDREN LOOKED AFTER,Facilities-Storage,SAFESTORE LIMITED,20/04/2017,194.90
CHILDREN LOOKED AFTER,Facilities-Storage,SAFESTORE LIMITED,20/04/2017,110.62
CHILDREN LOOKED AFTER,Financial Services-Insurance,MONDIAL ASSISTANCE,20/04/2017,50.00
CHILDREN LOOKED AFTER,Furniture-Domestic Furniture,IKEA ONLINE,20/04/2017,220.00
CHILDREN LOOKED AFTER,Furniture-Domestic Furniture,IKEA ONLINE,20/04/2017,-116.00
CHILDREN LOOKED AFTER,Travel/Subsistence,EUROSTAR INTERNET,20/04/2017,254.00
CHILDREN LOOKED AFTER,Travel/Subsistence,EUROSTAR INTERNET,20/04/2017,578.00
CHILDREN LOOKED AFTER,Vehicle Maintenance,IKEA ONLINE,20/04/2017,44.00
CHILDREN SAFEGUARDING & ASSESSMENTS,Furniture-Domestic Furniture,BRIXTON BEDS,20/04/2017,599.00
HOUSING MANAGEMENT SERVICES,Mail Services-Postage,POST OFFICE COUNTER,20/04/2017,0.00
LIBRARIES & ARCHIVE,Domestic Goods-Other,AMAZON UK RETAIL AMAZON.C,20/04/2017,5.14
LIBRARIES & ARCHIVE,Domestic Goods-Other,Amazon UK Marketplace,20/04/2017,6.97
LIBRARIES & ARCHIVE,Domestic Goods-Other,Amazon UK Marketplace,20/04/2017,2.81
LIBRARIES & ARCHIVE,Domestic Goods-Other,Amazon UK Marketplace,20/04/2017,4.86
LIBRARIES & ARCHIVE,Education-Library Books,Amazon UK Marketplace,20/04/2017,2.81
LIBRARIES & ARCHIVE,Education-Library Books,Amazon UK Marketplace,20/04/2017,1.90
MENTAL HEALTH,Financial Services,CASH ADVANCE FEE,20/04/2017,7.08
MENTAL HEALTH,Financial Services,CASH ADVANCE FEE,20/04/2017,14.75
MENTAL HEALTH,Financial Services,CASH ADVANCE FEE,20/04/2017,14.46
MENTAL HEALTH,Financial Services,NATWEST BANK /,20/04/2017,500.00
MENTAL HEALTH,Financial Services,NATWEST BANK /,20/04/2017,340.00
MENTAL HEALTH,Financial Services,ROYAL BANK UK /,20/04/2017,150.00
MENTAL HEALTH,Financial Services,SAINSBURYS CASH,20/04/2017,240.00
MENTAL HEALTH,Legal Services-Other,HMCOURTS-SERVICE.G,20/04/2017,60.00
MENTAL HEALTH,Legal Services-Other,HMCOURTS-SERVICE.G,20/04/2017,120.00
MENTAL HEALTH,Legal Services-Other,HMCOURTS-SERVICE.G,20/04/2017,20.00
MENTAL HEALTH,Legal Services-Other,HMCOURTS-SERVICE.G,20/04/2017,80.00
MENTAL HEALTH,Legal Services-Other,HMCOURTS-SERVICE.G,20/04/2017,40.00
MENTAL HEALTH,Taxi Fares,WWW.ADDISONLEE.COM,20/04/2017,35.84
MENTAL HEALTH,Travel/Subsistence,LONDON & SOUTH EAS,20/04/2017,16.40
MENTAL HEALTH,Travel/Subsistence,LONDON & SOUTH EAS,20/04/2017,62.50
MENTAL HEALTH,Travel/Subsistence,OYSTER AUTOTOPUP,20/04/2017,20.00
MENTAL HEALTH,Travel/Subsistence,OYSTER AUTOTOPUP,20/04/2017,20.00
NEIGHBOURHOODS,Domestic Goods-Other,Amazon UK Marketplace,20/04/2017,44.91
PROPERTY & FINANCIAL TRANSACTION SERVICES,Travel/Subsistence,OYSTER AUTOTOPUP,20/04/2017,20.00
PROPERTY & FINANCIAL TRANSACTION SERVICES,Travel/Subsistence,OYSTER AUTOTOPUP,20/04/2017,20.00
PROPERTY & FINANCIAL TRANSACTION SERVICES,Travel/Subsistence,OYSTER BUS AUTOTOP,20/04/2017,20.00
CHILDREN LOOKED AFTER,Domestic Goods-Other,ARGOS RETAIL GROUP,21/04/2017,486.94
CHILDREN LOOKED AFTER,Financial Services,GRO HM PASSPORT OFFICE,21/04/2017,29.85
CHILDREN LOOKED AFTER,Financial Services-Grants,ALLPAY LTD,21/04/2017,643.00
CHILDREN LOOKED AFTER,Furniture-Domestic Furniture,UKSOFALTD,21/04/2017,403.00
CHILDREN LOOKED AFTER,Haulage,CAVENDISH & COUNTRY R,21/04/2017,100.00
CHILDREN LOOKED AFTER,Travel/Subsistence,EUROSTAR INTERNET,21/04/2017,219.00
CHILDREN SAFEGUARDING & ASSESSMENTS,Domestic Goods-Other,ARGOS RETAIL GROUP,21/04/2017,13.99
DAY CENTRES,Travel/Subsistence,OYSTER BUS AUTOTOP,21/04/2017,20.00
EARLY HELP,Books/Publications/Resources,LOVE2SHOP.CO.UK,21/04/2017,153.50
EARLY HELP,Books/Publications/Resources,LOVE2SHOP.CO.UK,21/04/2017,153.50
NEIGHBOURHOODS,Building-Timber,ACRE LANE TIMBER LTD,21/04/2017,3.42
INTERNAL AUDIT,Travel/Subsistence,OYSTER AUTOTOPUP,22/04/2017,40.00
DAY CENTRES,Taxi Fares,WWW.ADDISONLEE.COM,23/04/2017,16.70
DAY CENTRES,Taxi Fares,WWW.ADDISONLEE.COM,23/04/2017,12.40
FINANCIAL PLANNING AND MANAGEMENT,Stationery,SAINSBURY'S S/MKT,23/04/2017,3.98
QUALITY ASSURANCE & PERFORMANCE,Childcare Services,LOVE2SHOP.CO.UK,23/04/2017,504.25
QUALITY ASSURANCE & PERFORMANCE,Domestic Goods-Other,AMZ*Bolsavia SL,23/04/2017,-44.99
QUALITY ASSURANCE & PERFORMANCE,Financial Services,LAMBETH INTERNET PAYM,23/04/2017,22.36
QUALITY ASSURANCE & PERFORMANCE,Travel/Subsistence,OYSTER AUTOTOPUP,23/04/2017,40.00
QUALITY ASSURANCE & PERFORMANCE,Travel/Subsistence,OYSTER AUTOTOPUP,23/04/2017,40.00
QUALITY ASSURANCE & PERFORMANCE,Travel/Subsistence,OYSTER AUTOTOPUP,23/04/2017,40.00
QUALITY ASSURANCE & PERFORMANCE,Travel/Subsistence,OYSTER BUS AUTOTOP,23/04/2017,40.00
QUALITY ASSURANCE & PERFORMANCE,Travel/Subsistence,TRAINLINE,23/04/2017,76.30
QUALITY ASSURANCE & PERFORMANCE,Travel/Subsistence,TRAINLINE,23/04/2017,92.82
QUALITY ASSURANCE & PERFORMANCE,Travel/Subsistence,TRAINLINE,23/04/2017,19.13
REVENUE & BENEFITS,Travel/Subsistence,OYSTER AUTOTOPUP,23/04/2017,20.00
CHILDREN LOOKED AFTER,Accommodation,WWW.EDGCUMBE-HOTEL.CO.,24/04/2017,47.00
CHILDREN LOOKED AFTER,Financial Services,GRO HM PASSPORT OFFICE,24/04/2017,37.00
CHILDREN LOOKED AFTER,Taxi Fares,WWW.ADDISONLEE.COM,24/04/2017,40.55
CHILDREN LOOKED AFTER,Travel/Subsistence,EUROSTAR INTERNET,24/04/2017,539.00
CHILDREN LOOKED AFTER,Vehicle Maintenance,WWW.COMAPRETHEMANANDTH,24/04/2017,56.58
DAY CENTRES,Domestic Goods-Other,Amazon UK Marketplace,24/04/2017,22.68
DAY CENTRES,Financial Services,NATWEST BANK /,24/04/2017,250.00
LIBRARIES & ARCHIVE,IT Consumables,Amazon UK Marketplace,24/04/2017,25.97
NEIGHBOURHOODS,Building-General,ARMOUR LOCK AND SAFE,24/04/2017,103.16
OTHER - ADULTS,Catering Food & Drink,TESCO STORES 5999,24/04/2017,100.73
CORPORATE AFFAIRS,Conference Expenses,HOTELS COM137647076873,25/04/2017,"1,350.00"
DAY CENTRES,Financial Services,ROYAL BANK UK /,25/04/2017,400.00
DAY CENTRES,Financial Services,SAINSBURYS CASH,25/04/2017,400.00
DAY CENTRES,Financial Services,CASH ADVANCE FEE,25/04/2017,7.38
FINANCIAL PLANNING AND MANAGEMENT,Financial Services,LAND REGISTRY,25/04/2017,3.00
FINANCIAL PLANNING AND MANAGEMENT,Financial Services,LAND REGISTRY,25/04/2017,3.00
FINANCIAL PLANNING AND MANAGEMENT,Financial Services,LAND REGISTRY,25/04/2017,3.00
FINANCIAL PLANNING AND MANAGEMENT,Financial Services,LAND REGISTRY,25/04/2017,6.00
FINANCIAL PLANNING AND MANAGEMENT,Financial Services,LAND REGISTRY,25/04/2017,3.00
FINANCIAL PLANNING AND MANAGEMENT,Financial Services,LAND REGISTRY,25/04/2017,6.00
NEIGHBOURHOODS,Utilities,FULHAM TIMBER,25/04/2017,61.20
CHILDREN LOOKED AFTER,Domestic Goods-Other,ARGOS RETAIL GROUP,26/04/2017,103.92
DAY CENTRES,Domestic Goods-Other,Amazon UK Marketplace,26/04/2017,44.74
DAY CENTRES,Financial Services,CASH ADVANCE FEE,26/04/2017,11.80
DAY CENTRES,Financial Services,CASH ADVANCE FEE,26/04/2017,11.80
POLICY & COMMUNICATIONS,Domestic Goods-Other,CURRYS SUPERSTORE,26/04/2017,119.99
SPECIAL EDUCATIONAL NEEDS,Books/Publications/Resources,WH SMITH,26/04/2017,20.00
YOUTH OFFENDING SERVICE,Furniture-Other,FAST KEY SERVICES LIMI,26/04/2017,12.08
YOUTH OFFENDING SERVICE,Public Transport,BRIXTONHILL EXPRESS,26/04/2017,50.00
CHILDREN LOOKED AFTER,Domestic Goods-Other,ARGOS RETAIL GROUP,27/04/2017,66.96
CHILDREN LOOKED AFTER,Domestic Goods-Other,CURRYS ONLINE,27/04/2017,408.32
CHILDREN LOOKED AFTER,Domestic Goods-Other,CURRYS ONLINE,27/04/2017,0.00
CHILDREN LOOKED AFTER,Domestic Goods-Other,CURRYS ONLINE,27/04/2017,314.99
CHILDREN LOOKED AFTER,Domestic Goods-Other,CURRYS T/SALES,27/04/2017,58.33
CHILDREN LOOKED AFTER,Domestic Goods-Other,WWW.ARGOS.CO.UK,27/04/2017,-469.99
CHILDREN LOOKED AFTER,Domestic Goods-Other,WWW.ARGOS.CO.UK,27/04/2017,-299.99
CHILDREN LOOKED AFTER,Financial Services,LAMBETH INTERNET PAYM,27/04/2017,52.86
CHILDREN LOOKED AFTER,Financial Services,GRO HM PASSPORT OFFICE,27/04/2017,-9.25
CHILDREN LOOKED AFTER,Financial Services,GRO HM PASSPORT OFFICE,27/04/2017,9.25
CHILDREN LOOKED AFTER,Financial Services-Grants,WWW.CORAM.ORG.UK,27/04/2017,348.45
CHILDREN LOOKED AFTER,Horticultural-Other,WWW.PRESTIGEFLOWERS.CO.U,27/04/2017,26.29
CHILDREN LOOKED AFTER,Legal Services-General Support,ROCK SOLICITORS,27/04/2017,568.80
CHILDREN LOOKED AFTER,Travel/Subsistence,EUROSTAR INTERNET,27/04/2017,673.50
CHILDREN SAFEGUARDING & ASSESSMENTS,Domestic Goods-Other,WWW.ARGOS.CO.UK,27/04/2017,76.94
CHILDREN SAFEGUARDING & ASSESSMENTS,Domestic Goods-Other,CURRYS ONLINE,27/04/2017,233.32
EMPLOYMENT & ENTERPRISE - E&L,Travel/Subsistence,OYSTER AUTOTOPUP,27/04/2017,20.00
EMPLOYMENT & ENTERPRISE - E&L,Travel/Subsistence,OYSTER AUTOTOPUP,27/04/2017,20.00
EMPLOYMENT & ENTERPRISE - E&L,Travel/Subsistence,OYSTER AUTOTOPUP,27/04/2017,20.00
EMPLOYMENT & ENTERPRISE - E&L,Travel/Subsistence,OYSTER AUTOTOPUP,27/04/2017,20.00
EMPLOYMENT & ENTERPRISE - E&L,Travel/Subsistence,OYSTER AUTOTOPUP,27/04/2017,20.00
EMPLOYMENT & ENTERPRISE - E&L,Travel/Subsistence,OYSTER AUTOTOPUP,27/04/2017,20.00
EMPLOYMENT & ENTERPRISE - E&L,Travel/Subsistence,OYSTER AUTOTOPUP,27/04/2017,20.00
EMPLOYMENT & ENTERPRISE - E&L,Travel/Subsistence,OYSTER AUTOTOPUP,27/04/2017,20.00
EMPLOYMENT & ENTERPRISE - E&L,Travel/Subsistence,OYSTER BUS AUTOTOP,27/04/2017,20.00
EMPLOYMENT & ENTERPRISE - E&L,Travel/Subsistence,OYSTER BUS AUTOTOP,27/04/2017,20.00
EMPLOYMENT & ENTERPRISE - E&L,Travel/Subsistence,OYSTER BUS AUTOTOP,27/04/2017,40.00
EMPLOYMENT & ENTERPRISE - E&L,Travel/Subsistence,OYSTER BUS AUTOTOP,27/04/2017,20.00
LIBRARIES & ARCHIVE,Education-Library Books,"Amazon Svcs Europe,SAR",27/04/2017,6.99
LIBRARIES & ARCHIVE,Education-Library Books,Amazon UK Marketplace,27/04/2017,20.97
LIBRARIES & ARCHIVE,Education-Library Books,Amazon UK Marketplace,27/04/2017,15.79
LIBRARIES & ARCHIVE,Education-Library Books,Amazon UK Marketplace,27/04/2017,8.12
LIBRARIES & ARCHIVE,Education-Library Books,Amazon UK Marketplace,27/04/2017,7.34
NEIGHBOURHOODS,Building-General,SCREWFIX,27/04/2017,23.98
NEIGHBOURHOODS,Stationery,AMAZON UK RETAIL AMAZON.C,27/04/2017,3.38
NEIGHBOURHOODS,Stationery,Amazon UK Marketplace,27/04/2017,2.95
NEIGHBOURHOODS,Stationery,Amazon UK Marketplace,27/04/2017,82.52
SCHOOL & EDUCATION IMPROVEMENT SERVICE,Catering Food & Drink,SAINSBURYS S/MKTS,27/04/2017,38.40
INTERNAL AUDIT,Financial Services,GRO HM PASSPORT OFFICE,28/04/2017,-9.25
INTERNAL AUDIT,Travel/Subsistence,TRAINLINE,28/04/2017,42.33
INTERNAL AUDIT,Travel/Subsistence,OYSTER AUTOTOPUP,28/04/2017,40.00
INTERNAL AUDIT,Travel/Subsistence,OYSTER BUS AUTOTOP,28/04/2017,40.00
NEIGHBOURHOODS,Building-Timber,ACRE LANE BUILDERS,28/04/2017,108.00
NEIGHBOURHOODS,Building-Timber,ACRE LANE BUILDERS,28/04/2017,108.00
FINANCIAL PLANNING AND MANAGEMENT,Travel/Subsistence,OYSTER AUTOTOPUP,29/04/2017,20.00
LIBRARIES & ARCHIVE,Catering Food & Drink,LIDL UK,30/04/2017,5.82
CHIEF EXECUTIVE'S OFFICE,Catering Food & Drink,TESCO STORE 2143,02/05/2017,16.00
CHILDREN SAFEGUARDING & ASSESSMENTS,Domestic Goods-Other,Amazon UK Marketplace,02/05/2017,49.00
CHILDREN SAFEGUARDING & ASSESSMENTS,Travel/Subsistence,TRAINLINE,02/05/2017,38.31
DAY CENTRES,Catering Food & Drink,TESCO STORE 2764,02/05/2017,77.75
EDUCATION & MAJOR CAPITAL PROJECTS,Catering Food & Drink,MARKS&SPENCER PLC SACA,02/05/2017,41.50
HOUSING MANAGEMENT SERVICES,Building-General,WWW.BRISTOWSUTOR.CO.UK,02/05/2017,408.33
LIBRARIES & ARCHIVE,Education-Arts/Crafts,Amazon UK Marketplace,02/05/2017,18.98
LIBRARIES & ARCHIVE,Education-Arts/Crafts,Amazon UK Marketplace,02/05/2017,20.98
NEIGHBOURHOODS,Building-Paint,MYLANDS,02/05/2017,156.66
NEIGHBOURHOODS,Stationery,AMAZON UK RETAIL AMAZON.C,02/05/2017,217.14
QUALITY ASSURANCE & PERFORMANCE,Consultancy-Business,ARMOUR LOCK AND SAFE,02/05/2017,75.00
QUALITY ASSURANCE & PERFORMANCE,Travel/Subsistence,OYSTER AUTOTOPUP,02/05/2017,40.00
QUALITY ASSURANCE & PERFORMANCE,Travel/Subsistence,TRAINLINE,02/05/2017,30.24
QUALITY ASSURANCE & PERFORMANCE,Travel/Subsistence,TRAINLINE,02/05/2017,106.28
QUALITY ASSURANCE & PERFORMANCE,Travel/Subsistence,TRAINLINE,02/05/2017,172.69
QUALITY ASSURANCE & PERFORMANCE,Travel/Subsistence,TRAINLINE,02/05/2017,22.29
DAY CENTRES,Financial Services,NATWEST BANK /,03/05/2017,250.00
EARLY YEARS QUALITY IMPROVEMENT,Education-Library Books,Amazon UK Marketplace,03/05/2017,51.79
MENTAL HEALTH,Legal Services-Other,HMCOURTS-SERVICE.G,03/05/2017,40.00
MENTAL HEALTH,Legal Services-Other,HMCOURTS-SERVICE.G,03/05/2017,60.00
MENTAL HEALTH,Travel/Subsistence,LONDON & SOUTH EAS,03/05/2017,63.40
MENTAL HEALTH,Travel/Subsistence,OYSTER AUTOTOPUP,03/05/2017,20.00
BALANCE SHEET,Personal,DENTONS CATERING EQUIP,04/05/2017,-47.37
CHILDREN LOOKED AFTER,Consultancy-Business,PLV*Marston Holdings Lim,04/05/2017,330.00
CHILDREN LOOKED AFTER,Domestic Goods-Other,AO RETAIL LIMITED,04/05/2017,315.83
CHILDREN LOOKED AFTER,Financial Services,HM PASSPORT OFFICE,04/05/2017,72.50
CHILDREN LOOKED AFTER,Financial Services,HM PASSPORT OFFICE,04/05/2017,72.50
CHILDREN LOOKED AFTER,Furniture-Domestic Furniture,KIDDICARE,04/05/2017,32.98
CHILDREN LOOKED AFTER,Travel/Subsistence,EUROSTAR INTERNET,04/05/2017,76.50
DAY CENTRES,Catering Equipment,DENTONS CATERING EQUIP,04/05/2017,0.00
HOUSING MANAGEMENT SERVICES,Catering Food & Drink,SAINSBURY'S S/MKT,04/05/2017,41.67
HOUSING MANAGEMENT SERVICES,Travel/Subsistence,NEW SOUTHERN RAILW,04/05/2017,41.67
LIBRARIES & ARCHIVE,Education-Library Books,AMAZON UK RETAIL AMAZON.C,04/05/2017,6.37
LIBRARIES & ARCHIVE,Education-Library Books,Amazon UK Marketplace,04/05/2017,5.40
LIBRARIES & ARCHIVE,Education-Library Books,Amazon UK Marketplace,04/05/2017,19.96
LIBRARIES & ARCHIVE,Education-Library Books,Amazon UK Marketplace,04/05/2017,10.26
LIBRARIES & ARCHIVE,Education-Library Books,Amazon UK Retail,04/05/2017,9.37
NEIGHBOURHOODS,Building-Timber,SCREWFIX,04/05/2017,94.20
NEIGHBOURHOODS,Building-Timber,SCREWFIX,04/05/2017,9.59
REVENUE & BENEFITS,Legal Services-Other,HMCOURTS-SERVICE.G,04/05/2017,"15,204.00"
SCHOOL & EDUCATION IMPROVEMENT SERVICE,Domestic Goods-Other,CURRYS SUPERSTORE,04/05/2017,20.00
DAY CENTRES,Financial Services,CASH ADVANCE FEE,05/05/2017,7.38
FINANCIAL PLANNING AND MANAGEMENT,Use of Public Transport,LUL TICKET MACHINE,05/05/2017,10.00
LIBRARIES & ARCHIVE,Books/Publications/Resources,SAINSBURYS CASH,05/05/2017,200.00
NEIGHBOURHOODS,Building-Timber,SELCO TRADING CTR,05/05/2017,202.96
NEIGHBOURHOODS,Clothing-Footwear,LANDSCAPE SUPPLY COMPA,05/05/2017,69.98
POLICY & COMMUNICATIONS,Catering Food & Drink,KENNINGTON PARK CAFE LTD,05/05/2017,300.00
LIBRARIES & ARCHIVE,Domestic Goods-Other,AMZ*vivaverve,07/05/2017,-60.98
LIBRARIES & ARCHIVE,Domestic Goods-Other,Amazon UK Marketplace,07/05/2017,60.98
LIBRARIES & ARCHIVE,Domestic Goods-Other,Amazon UK Marketplace,07/05/2017,2.81
LIBRARIES & ARCHIVE,Domestic Goods-Other,Amazon UK Marketplace,07/05/2017,65.85
NEIGHBOURHOODS,Vehicle Parts,HALFORDS 0716,07/05/2017,79.17
DAY CENTRES,Financial Services,CASH ADVANCE FEE,08/05/2017,7.38
DAY CENTRES,Financial Services,SANTANDER PLC (UK),08/05/2017,250.00
FINANCIAL PLANNING AND MANAGEMENT,Use of Public Transport,OYSTER BUS AUTOSET,08/05/2017,80.00
FINANCIAL PLANNING AND MANAGEMENT,Use of Public Transport,OYSTER ISSUE WEB,08/05/2017,25.00
HOUSING MANAGEMENT SERVICES,Catering Food & Drink,TESCO STORES 5999,08/05/2017,54.03
HOUSING MANAGEMENT SERVICES,Taxi Fares,GREYHOUND CARS LTD,08/05/2017,14.36
LIBRARIES & ARCHIVE,Books/Publications/Resources,CASH ADVANCE FEE,08/05/2017,5.90
PROCUREMENT,Education-Other,WWW.CIPS.ORG,08/05/2017,99.96
BALANCE SHEET,Personal,DENTONS CATERING EQUIP,09/05/2017,-88.12
CHILDREN SAFEGUARDING & ASSESSMENTS,Financial Services,LAMBETH INTERNET PAYM,09/05/2017,83.35
DAY CENTRES,Financial Services,NATWEST BANK /,09/05/2017,250.00
NEIGHBOURHOODS,Charges and Penalties,TFL PENALTY CHARGE,09/05/2017,65.00
NEIGHBOURHOODS,Horticultural-Other,ERNEST DOE / SONS,09/05/2017,151.57
NEIGHBOURHOODS,Stationery,WH SMITH,09/05/2017,9.99
NEIGHBOURHOODS,Use of Public Transport,LUL TICKET MACHINE,09/05/2017,100.00
EDUCATION & MAJOR CAPITAL PROJECTS,Domestic Goods-Other,ARGOS RETAIL GROUP,10/05/2017,93.94
INTERNAL AUDIT,Travel/Subsistence,OYSTER BUS AUTOTOP,10/05/2017,40.00
INTERNAL AUDIT,Travel/Subsistence,TFL ROAD CHARGE,10/05/2017,11.50
NEIGHBOURHOODS,Building-General,FRASER & ELLIS LTD,10/05/2017,61.22
OTHER - ADULTS,Banquet & Catering,WWW.EVENTSUPPLIES.CO.U,10/05/2017,164.16
OTHER - ADULTS,Catering Food & Drink,TESCO STORES 5999,10/05/2017,88.80
OTHER - ADULTS,Domestic Goods-Other,Amazon UK Marketplace,10/05/2017,8.75
CHILDREN LOOKED AFTER,Accommodation,THESQUA.RE LTD,11/05/2017,810.00
CHILDREN LOOKED AFTER,Facilities-Storage,SAFESTORE LIMITED,11/05/2017,747.99
CHILDREN LOOKED AFTER,Furniture-Domestic Furniture,CURRYS ONLINE,11/05/2017,-69.99
CHILDREN LOOKED AFTER,Horticultural-Other,WWW.PRESTIGEFLOWERS.CO.U,11/05/2017,26.29
CHILDREN LOOKED AFTER,Legal Services-Other,GRO HM PASSPORT OFFICE,11/05/2017,46.25
CHILDREN LOOKED AFTER,Legal Services-Other,THE HOME OFFICE,11/05/2017,308.00
CHILDREN LOOKED AFTER,Travel/Subsistence,FLYBE.COM CGWZJ1,11/05/2017,259.52
CHILDREN SAFEGUARDING & ASSESSMENTS,Legal Services-General Support,HM PASSPORT OFFICE,11/05/2017,145.00
DAY CENTRES,Financial Services,CASH ADVANCE FEE,11/05/2017,7.38
EARLY HELP,Stationery,FORTRESS MASTER LOCKSMITH,11/05/2017,41.25
HOUSING MANAGEMENT SERVICES,Books/Publications/Resources,THE POST OFFICE,11/05/2017,89.60
HOUSING MANAGEMENT SERVICES,Food/refreshment - meetings,DOMINOS PIZZA,11/05/2017,233.02
HOUSING MANAGEMENT SERVICES,Food/refreshment - meetings,TESCO STORES 6231,11/05/2017,2.22
HOUSING MANAGEMENT SERVICES,Use of Public Transport,LUL TICKET MACHINE,11/05/2017,100.00
LIBRARIES & ARCHIVE,Education-Library Books,Amazon UK Marketplace,11/05/2017,17.06
LIBRARIES & ARCHIVE,Education-Library Books,Amazon UK Marketplace,11/05/2017,2.81
LIBRARIES & ARCHIVE,Education-Library Books,Amazon UK Retail,11/05/2017,9.98
CHILDREN LOOKED AFTER,Domestic Goods-Other,WWW.ARGOS.CO.UK,12/05/2017,28.93
CHILDREN LOOKED AFTER,Furniture-Other,ASDA GEORGE COM LEEDS,12/05/2017,329.95
CHILDREN LOOKED AFTER,Taxi Fares,WWW.ADDISONLEE.COM,12/05/2017,30.65
CHILDREN SAFEGUARDING & ASSESSMENTS,Financial Services,LAMBETH INTERNET PAYM,12/05/2017,12.20
CORPORATE AFFAIRS,Use of Public Transport,EAST MIDLANDS TRAINS,12/05/2017,116.40
DAY CENTRES,Catering Food & Drink,ICELAND,12/05/2017,49.83
EARLY HELP,Books/Publications/Resources,ARGOS RETAIL GROUP,12/05/2017,199.98
INTERNAL AUDIT,Travel/Subsistence,TRAINLINE,12/05/2017,31.37
NEIGHBOURHOODS,Use of Public Transport,LUL TICKET MACHINE,12/05/2017,30.00
QUALITY ASSURANCE & PERFORMANCE,Travel/Subsistence,OYSTER AUTOTOPUP,12/05/2017,40.00
QUALITY ASSURANCE & PERFORMANCE,Travel/Subsistence,OYSTER AUTOTOPUP,12/05/2017,80.00
QUALITY ASSURANCE & PERFORMANCE,Travel/Subsistence,OYSTER BUS AUTOTOP,12/05/2017,40.00
QUALITY ASSURANCE & PERFORMANCE,Travel/Subsistence,OYSTER BUS AUTOTOP,12/05/2017,40.00
QUALITY ASSURANCE & PERFORMANCE,Travel/Subsistence,TRAINLINE,12/05/2017,42.84
QUALITY ASSURANCE & PERFORMANCE,Travel/Subsistence,TRAINLINE,12/05/2017,96.59
QUALITY ASSURANCE & PERFORMANCE,Travel/Subsistence,TRAINLINE,12/05/2017,-12.72
REVENUE & BENEFITS,Use of Public Transport,OYSTER BUS AUTOTOP,13/05/2017,20.00
INTERNAL AUDIT,Domestic Goods-Other,AMAZON UK RETAIL AMAZON.C,14/05/2017,25.72
CHILDREN SAFEGUARDING & ASSESSMENTS,Education-Library Books,Amazon UK Marketplace,15/05/2017,44.99
CHILDREN SAFEGUARDING & ASSESSMENTS,Financial Services,BROMLEY COUNCIL -INT,15/05/2017,15.34
CHILDREN SAFEGUARDING & ASSESSMENTS,Financial Services,RB KEN&CHELSEA,15/05/2017,21.87
CHILDREN SAFEGUARDING & ASSESSMENTS,Stationery,ONLINE-ERGONOMICS.,15/05/2017,47.40
EARLY HELP,Books/Publications/Resources,EMMAUS,15/05/2017,62.00
LIBRARIES & ARCHIVE,Vehicle Parts,CLARKE INTERNATIONAL L,15/05/2017,56.57
NEIGHBOURHOODS,Building-General,FORTRESS MASTER LOCKSMITH,15/05/2017,66.25
QUALITY ASSURANCE & PERFORMANCE,Travel/Subsistence,OYSTER AUTOTOPUP,15/05/2017,40.00
QUALITY ASSURANCE & PERFORMANCE,Travel/Subsistence,OYSTER AUTOTOPUP,15/05/2017,40.00
QUALITY ASSURANCE & PERFORMANCE,Travel/Subsistence,OYSTER BUS AUTOTOP,15/05/2017,40.00
QUALITY ASSURANCE & PERFORMANCE,Travel/Subsistence,OYSTER BUS AUTOTOP,15/05/2017,40.00
QUALITY ASSURANCE & PERFORMANCE,Travel/Subsistence,TRAINLINE,15/05/2017,174.22
CORPORATE AFFAIRS,Food/refreshment - meetings,MARKS&SPENCER PLC SACA,16/05/2017,17.34
CORPORATE AFFAIRS,Food/refreshment - meetings,MARKS&SPENCER PLC SACA,16/05/2017,20.19
EARLY HELP,Books/Publications/Resources,Amazon UK Retail,16/05/2017,63.44
HOUSING MANAGEMENT SERVICES,Books/Publications/Resources,ASDA STORES LTD 5871,16/05/2017,24.00
HOUSING MANAGEMENT SERVICES,Books/Publications/Resources,B & Q 1037,16/05/2017,207.45
HOUSING MANAGEMENT SERVICES,Charges and Penalties,WWW.BRISTOWSUTOR.CO.UK,16/05/2017,469.65
HOUSING MANAGEMENT SERVICES,HMRC Fees,DUDRICH HOLDINGS,16/05/2017,28.63
HOUSING MANAGEMENT SERVICES,Stationery,DUDRICH HOLDINGS,16/05/2017,143.15
HOUSING MANAGEMENT SERVICES,Subsistence: Lunch Allowance,SAINSBURY'S S/MKT,16/05/2017,50.00
HOUSING MANAGEMENT SERVICES,Use of Public Transport,LUL TICKET MACHINE,16/05/2017,60.00
HOUSING MANAGEMENT SERVICES,Use of Public Transport,NEW SOUTHERN RAILW,16/05/2017,50.00
"PLANNING, TRANSPORT & DEVELOPMENT",Travel/Subsistence,LUL TICKET MACHINE,16/05/2017,60.00
"PLANNING, TRANSPORT & DEVELOPMENT",Travel/Subsistence,LUL TICKET MACHINE,16/05/2017,60.00
"PLANNING, TRANSPORT & DEVELOPMENT",Travel/Subsistence,LUL TICKET MACHINE,16/05/2017,60.00
YOUTH OFFENDING SERVICE,IT Office Equipment,AMAZON UK RETAIL AMAZON.C,16/05/2017,15.28
YOUTH OFFENDING SERVICE,Public Transport,BRIXTONHILL EXPRESS,16/05/2017,50.00
CHILDREN LOOKED AFTER,Financial Services,GRO HM PASSPORT OFFICE,17/05/2017,46.80
CORPORATE AFFAIRS,Stationery,PAYPAL *DOCULANDREP,17/05/2017,195.75
CORPORATE AFFAIRS,Stationery,WP-STAMPS DIRECT L,17/05/2017,23.80
DAY CENTRES,Financial Services,NATIONWIDE /W5791Z,17/05/2017,400.00
FINANCIAL PLANNING AND MANAGEMENT,Domestic Goods-Other,WWW.ARGOS.CO.UK,17/05/2017,99.98
FINANCIAL PLANNING AND MANAGEMENT,Domestic Goods-Other,WWW.ARGOS.CO.UK,17/05/2017,208.92
FINANCIAL PLANNING AND MANAGEMENT,Financial Services,LAND REGISTRY,17/05/2017,3.00
FINANCIAL PLANNING AND MANAGEMENT,Financial Services,LAND REGISTRY,17/05/2017,6.00
FINANCIAL PLANNING AND MANAGEMENT,Financial Services,LAND REGISTRY,17/05/2017,6.00
FINANCIAL PLANNING AND MANAGEMENT,Financial Services,LAND REGISTRY,17/05/2017,3.00
FINANCIAL PLANNING AND MANAGEMENT,Use of Public Transport,OYSTER AUTOTOPUP,17/05/2017,20.00
FINANCIAL PLANNING AND MANAGEMENT,Use of Public Transport,OYSTER BUS AUTOSET,17/05/2017,20.00
FINANCIAL PLANNING AND MANAGEMENT,Use of Public Transport,OYSTER RENEW WEB,17/05/2017,20.00
FINANCIAL PLANNING AND MANAGEMENT,Use of Public Transport,OYSTER RENEW WEB,17/05/2017,20.00
HOUSING MANAGEMENT SERVICES,Books/Publications/Resources,LAMBETH INTERNET PAYM,17/05/2017,32.53
HOUSING MANAGEMENT SERVICES,Books/Publications/Resources,THE POST OFFICE,17/05/2017,58.24
HOUSING MANAGEMENT SERVICES,Use of Public Transport,LUL TICKET MACHINE,17/05/2017,100.00
OTHER - ADULTS,Arts & Leisure Services,CITY LIT,17/05/2017,44.00
"PLANNING, TRANSPORT & DEVELOPMENT",Healthcare Equipment,WWW.BACKCS.CO.UK,17/05/2017,758.00
"PLANNING, TRANSPORT & DEVELOPMENT",Travel/Subsistence,OYSTER AUTOTOPUP,17/05/2017,20.00
"PLANNING, TRANSPORT & DEVELOPMENT",Travel/Subsistence,OYSTER AUTOTOPUP,17/05/2017,20.00
"PLANNING, TRANSPORT & DEVELOPMENT",Travel/Subsistence,TFL CYCLE HIRE,17/05/2017,38.00
"PLANNING, TRANSPORT & DEVELOPMENT",Travel/Subsistence,TFL CYCLE HIRE,17/05/2017,-38.00
CHILDREN LOOKED AFTER,Accommodation,HOLIDAY INN EXPRESS LONDO,18/05/2017,153.00
CHILDREN LOOKED AFTER,Domestic Goods-Other,ARGOS RETAIL GROUP,18/05/2017,316.93
CHILDREN LOOKED AFTER,Facilities-Storage,KATOR STORAGE LTD,18/05/2017,112.60
CHILDREN LOOKED AFTER,Financial Services,GRO HM PASSPORT OFFICE,18/05/2017,-37.00
CHILDREN LOOKED AFTER,Financial Services,GRO HM PASSPORT OFFICE,18/05/2017,37.00
CHILDREN LOOKED AFTER,Travel/Subsistence,FLYBE.COM DJ2GKK,18/05/2017,237.89
CHILDREN LOOKED AFTER,Travel/Subsistence,EUROSTAR INTERNET,18/05/2017,496.50
DAY CENTRES,Financial Services,CASH ADVANCE FEE,18/05/2017,11.80
DAY CENTRES,Financial Services,COSTCUTTER - TULSE HILL,18/05/2017,250.00
DAY CENTRES,Financial Services,NATWEST BANK /,18/05/2017,250.00
EARLY HELP,Use of Public Transport,WWW.SOUTHEASTERNRAILWA,18/05/2017,53.90
INTERNAL AUDIT,Travel/Subsistence,NCP PARKPASS ONLINE,18/05/2017,40.00
INTERNAL AUDIT,Travel/Subsistence,OYSTER BUS AUTOTOP,18/05/2017,40.00
NEIGHBOURHOODS,Building-General,SCREWFIX,18/05/2017,25.81
NEIGHBOURHOODS,Building-General,SCREWFIX DIRECT,18/05/2017,141.74
DAY CENTRES,Financial Services,CASH ADVANCE FEE,19/05/2017,7.38
DAY CENTRES,Financial Services,CASH ADVANCE FEE,19/05/2017,7.38
FINANCIAL PLANNING AND MANAGEMENT,Financial Services,COMPANIES HOUSE,19/05/2017,13.00
LIBRARIES & ARCHIVE,Healthcare Equipment,RNIB CHARITY,19/05/2017,55.00
NEIGHBOURHOODS,Building-Plumbing,SCREWFIX DIRECT,19/05/2017,9.97
LIBRARIES & ARCHIVE,Catering Food & Drink,LIDL UK,20/05/2017,5.91
LIBRARIES & ARCHIVE,Facilities-Advertising,WH SMITH,20/05/2017,313.80
LIBRARIES & ARCHIVE,Facilities-Advertising,WH SMITH,20/05/2017,222.57
NEIGHBOURHOODS,Building-Timber,ACRE LANE BUILDERS,21/05/2017,163.36
BALANCE SHEET,Personal,CURRYS ONLINE,22/05/2017,-0.96
BALANCE SHEET,Personal,FORTRESS MASTER LOCKSMITH,22/05/2017,-0.46
CHILDREN LOOKED AFTER,Domestic Goods-Other,AO RETAIL LIMITED,22/05/2017,342.48
CHILDREN LOOKED AFTER,Domestic Goods-Other,CURRYS ONLINE,22/05/2017,702.34
CHILDREN LOOKED AFTER,Furniture-Domestic Furniture,IKEA ONLINE,22/05/2017,132.50
CHILDREN LOOKED AFTER,Furniture-Domestic Furniture,WORLDSTORES LTD,22/05/2017,258.32
DAY CENTRES,Building-Others,TESCO STORE 2764,22/05/2017,12.00
DAY CENTRES,Catering Food & Drink,TESCO STORE 2764,22/05/2017,136.92
DAY CENTRES,Financial Services,ROYAL BANK UK /,22/05/2017,400.00
LIBRARIES & ARCHIVE,Education-Library Books,Amazon UK Retail,22/05/2017,14.60
LIBRARIES & ARCHIVE,Education-Library Books,AMAZON UK RETAIL AMAZON.C,22/05/2017,9.99
LIBRARIES & ARCHIVE,Education-Library Books,AMAZON UK RETAIL AMAZON.C,22/05/2017,10.56
LIBRARIES & ARCHIVE,Education-Library Books,AMAZON UK RETAIL AMAZON.C,22/05/2017,9.62
LIBRARIES & ARCHIVE,Education-Library Books,AMZ*Amazon.co.uk,22/05/2017,-5.99
LIBRARIES & ARCHIVE,Education-Library Books,Amazon UK Marketplace,22/05/2017,6.55
LIBRARIES & ARCHIVE,Education-Library Books,Amazon UK Marketplace,22/05/2017,13.75
LIBRARIES & ARCHIVE,Education-Library Books,Amazon UK Marketplace,22/05/2017,14.41
LIBRARIES & ARCHIVE,Education-Library Books,Amazon UK Marketplace,22/05/2017,6.78
LIBRARIES & ARCHIVE,Education-Library Books,Amazon UK Marketplace,22/05/2017,22.27
LIBRARIES & ARCHIVE,Education-Library Books,Amazon UK Retail,22/05/2017,37.96
NEIGHBOURHOODS,Building-General,FORTRESS MASTER LOCKSMITH,22/05/2017,21.00
NEIGHBOURHOODS,Domestic Goods-Other,LOCKFIELD SYSTEMS LTD,22/05/2017,19.84
NEIGHBOURHOODS,Domestic Goods-Other,LOCKFIELD SYSTEMS LTD,22/05/2017,12.56
NEIGHBOURHOODS,Domestic Goods-Other,THE SECRET GARDEN,22/05/2017,30.00
NEIGHBOURHOODS,Financial Services,DVLA DUP REG DOC,22/05/2017,25.00
NEIGHBOURHOODS,Use of Public Transport,LUL TICKET MACHINE,22/05/2017,15.00
CHILDREN LOOKED AFTER,Domestic Goods-Other,CURRYS ONLINE,23/05/2017,254.16
DAY CENTRES,Financial Services,CASH ADVANCE FEE,23/05/2017,11.80
EARLY HELP,Books/Publications/Resources,Amazon UK Marketplace,23/05/2017,7.99
EARLY HELP,Books/Publications/Resources,Amazon UK Marketplace,23/05/2017,9.99
LIBRARIES & ARCHIVE,Financial Services,SAINSBURYS CASH,23/05/2017,80.00
NEIGHBOURHOODS,Building-Paint,SCREWFIX DIRECT,23/05/2017,15.08
CHIEF EXECUTIVE'S OFFICE,IT Software,Amazon UK Marketplace,24/05/2017,54.95
INTERNAL AUDIT,Travel/Subsistence,OYSTER AUTOTOPUP,24/05/2017,40.00
INTERNAL AUDIT,Travel/Subsistence,OYSTER BUS AUTOTOP,24/05/2017,40.00
INTERNAL AUDIT,Travel/Subsistence,OYSTER BUS AUTOTOP,24/05/2017,40.00
LIBRARIES & ARCHIVE,Books/Publications/Resources,Amazon UK Marketplace,24/05/2017,38.28
LIBRARIES & ARCHIVE,Financial Services,CASH ADVANCE FEE,24/05/2017,2.95
POLICY & COMMUNICATIONS,Books/Publications/Resources,Amazon UK Marketplace,24/05/2017,130.00
POLICY & COMMUNICATIONS,IT Services,123 REG R/T,24/05/2017,14.99
POLICY & COMMUNICATIONS,IT Services,123-REG.CO.UK,24/05/2017,14.99
POLICY & COMMUNICATIONS,IT Services,HOOTSUITE MEDIA INC.,24/05/2017,5.77
PUBLIC HEALTH - ADULTS,Conference Expenses,PREMIER INN44022890,24/05/2017,343.96
PUBLIC HEALTH - ADULTS,Education-Other,EB *DIFFICULT COMMISSI,24/05/2017,240.00
PUBLIC HEALTH - ADULTS,Education-Other,KNOWLEDGETRAINCOUK,24/05/2017,"1,438.80"
PUBLIC HEALTH - ADULTS,Healthcare Services,PATHWAY ANALYITCS,24/05/2017,600.00
PUBLIC HEALTH - ADULTS,Healthcare Services,NHS SHARED BUSINESS SV,24/05/2017,"3,360.00"
PUBLIC HEALTH - ADULTS,Healthcare Services,WWW.EUKHOST.COM,24/05/2017,29.94
PUBLIC HEALTH - ADULTS,Healthcare Services,CALD AND HUDD NHS,24/05/2017,134.00
PUBLIC HEALTH - ADULTS,Healthcare Services,NHS SBS,24/05/2017,355.05
PUBLIC HEALTH - ADULTS,Travel/Subsistence,RYANAIR 22400000MQ9JJ,24/05/2017,71.38
REVENUE & BENEFITS,IT Software,AMAZON.CO.UK,24/05/2017,7.37
CORPORATE AFFAIRS,Stationery,HTTP://WWW.UNIVERSEAL.CO,25/05/2017,176.40
CORPORATE AFFAIRS,Stationery,OFFICE DEPOT UK LTD,25/05/2017,190.80
CORPORATE AFFAIRS,Stationery,OFFICE DEPOT UK LTD,25/05/2017,13.85
CORPORATE AFFAIRS,Stationery,OFFICE DEPOT UK LTD,25/05/2017,24.80
FINANCIAL PLANNING AND MANAGEMENT,Use of Public Transport,MORDEN NEWS,25/05/2017,30.00
LIBRARIES & ARCHIVE,Catering Food & Drink,TESCO STORE 2143,25/05/2017,27.98
NEIGHBOURHOODS,Building-General,SCREWFIX,25/05/2017,101.22
NEIGHBOURHOODS,Domestic Goods-Other,AMAZON UK RETAIL AMAZON.C,26/05/2017,26.17
NEIGHBOURHOODS,Domestic Goods-Other,AMAZON.CO.UK,26/05/2017,5.71
PROCUREMENT,Books/Publications/Resources,WWW.CIPS.ORG,26/05/2017,99.96
PROPERTY & FINANCIAL TRANSACTION SERVICES,Facilities-Storage,FORTRESS MASTER LOCKSMITH,26/05/2017,153.50
CHILDREN SAFEGUARDING & ASSESSMENTS,Accommodation,HOTEL IBIS,27/05/2017,98.00
CHILDREN SAFEGUARDING & ASSESSMENTS,Domestic Goods-Other,Amazon UK Marketplace,27/05/2017,125.36
OTHER - ADULTS,Catering Equipment,Amazon UK Retail,27/05/2017,39.00
OTHER - ADULTS,Catering Food & Drink,TESCO STORES 5999,27/05/2017,65.32
QUALITY ASSURANCE & PERFORMANCE,Travel/Subsistence,OYSTER AUTOTOPUP,27/05/2017,40.00
QUALITY ASSURANCE & PERFORMANCE,Travel/Subsistence,OYSTER AUTOTOPUP,27/05/2017,40.00
QUALITY ASSURANCE & PERFORMANCE,Travel/Subsistence,OYSTER AUTOTOPUP,27/05/2017,40.00
QUALITY ASSURANCE & PERFORMANCE,Travel/Subsistence,OYSTER AUTOTOPUP,27/05/2017,40.00
QUALITY ASSURANCE & PERFORMANCE,Travel/Subsistence,OYSTER AUTOTOPUP,27/05/2017,40.00
QUALITY ASSURANCE & PERFORMANCE,Travel/Subsistence,OYSTER BUS AUTOTOP,27/05/2017,40.00
QUALITY ASSURANCE & PERFORMANCE,Travel/Subsistence,OYSTER BUS AUTOTOP,27/05/2017,40.00
QUALITY ASSURANCE & PERFORMANCE,Travel/Subsistence,TRAINLINE,27/05/2017,98.94
QUALITY ASSURANCE & PERFORMANCE,Travel/Subsistence,TRAINLINE,27/05/2017,75.58
BALANCE SHEET,Personal,LOCKSMITHS AT THE TOOL,30/05/2017,-0.33
CHILDREN LOOKED AFTER,Travel/Subsistence,TRAINLINE,30/05/2017,68.85
CORPORATE AFFAIRS,Domestic Goods-Other,Amazon UK Marketplace,30/05/2017,34.99
DAY CENTRES,Financial Services,CASH ADVANCE FEE,30/05/2017,7.38
DAY CENTRES,Financial Services,SAINSBURYS CASH,30/05/2017,250.00
HOUSING MANAGEMENT SERVICES,Accommodation,EURO ( QUEENS HOTEL ),30/05/2017,403.16
HOUSING MANAGEMENT SERVICES,Accommodation,EURO ( QUEENS HOTEL ),30/05/2017,22.05
HOUSING MANAGEMENT SERVICES,Catering Food & Drink,SAINSBURY'S S/MKT,30/05/2017,50.00
HOUSING MANAGEMENT SERVICES,Domestic Goods-Other,M ALLEN WATCH REPAIRS,30/05/2017,11.00
HOUSING MANAGEMENT SERVICES,Financial Services,GRO HM PASSPORT OFFICE,30/05/2017,0.00
HOUSING MANAGEMENT SERVICES,Travel/Subsistence,NEW SOUTHERN RAILW,30/05/2017,50.00
HOUSING MANAGEMENT SERVICES,Travel/Subsistence,NEW SOUTHERN RAILW,30/05/2017,50.00
NEIGHBOURHOODS,Building-Timber,SCREWFIX,30/05/2017,94.00
NEIGHBOURHOODS,Building-Timber,TP BALHAM HILL,30/05/2017,112.82
NEIGHBOURHOODS,Works-Construction/Materials,LOCKSMITHS AT THE TOOL,30/05/2017,33.00
PUBLIC HEALTH - ADULTS,Domestic Goods-Other,AMAZON UK RETAIL AMAZON.C,30/05/2017,17.36
SENIOR MANAGEMENT - ADULTS & PUBLIC HEALTH,Professional & Advisory Services,STEPHENSON HARWOOD,30/05/2017,350.00
CHIEF EXECUTIVE'S OFFICE,Catering Food & Drink,SAINSBURYS,31/05/2017,17.25
CORPORATE AFFAIRS,Stationery,WWW.POSTURITE.CO.UK,31/05/2017,187.14
DAY CENTRES,Travel/Subsistence,OYSTER RENEW WEB,31/05/2017,20.00
EARLY HELP,Books/Publications/Resources,LUL TICKET MACHINE,31/05/2017,24.70
EARLY HELP,Books/Publications/Resources,WWW.POSTURITE.CO.UK,31/05/2017,303.97
HUMAN RESOURCES & ORGANISATIONAL DEVELOPMENT,Staff Recruitment costs,UKBA7582905999,31/05/2017,"3,199.00"
NEIGHBOURHOODS,Building-General,FORTRESS MASTER LOCKSMITH,31/05/2017,166.10
NEIGHBOURHOODS,Clothing-Footwear,SPORTSDIRECT.COM,31/05/2017,37.98
"PLANNING, TRANSPORT & DEVELOPMENT",Banquet & Catering,TESCO STORES 5342,31/05/2017,8.19
"PLANNING, TRANSPORT & DEVELOPMENT",Facilities-Advertising,ROYAL TOWN PLANNING,31/05/2017,276.00
"PLANNING, TRANSPORT & DEVELOPMENT",Facilities-Storage,ACCESS SELF STORAG,31/05/2017,-367.19
"PLANNING, TRANSPORT & DEVELOPMENT",Facilities-Storage,ACCESS STORAG,31/05/2017,381.00
EARLY HELP,Books/Publications/Resources,Amazon UK Marketplace,01/06/2017,9.99
INTERNAL AUDIT,Travel/Subsistence,TFL ROAD CHARGE,01/06/2017,11.50
LIBRARIES & ARCHIVE,Education-Library Books,Amazon UK Marketplace,01/06/2017,2.99
LIBRARIES & ARCHIVE,Education-Library Books,AMAZON UK RETAIL AMAZON.C,01/06/2017,4.87
LIBRARIES & ARCHIVE,Education-Library Books,AMAZON.CO.UK,01/06/2017,11.40
LIBRARIES & ARCHIVE,Education-Library Books,AMAZON.CO.UK,01/06/2017,30.93
LIBRARIES & ARCHIVE,Education-Library Books,Amazon UK Marketplace,01/06/2017,15.11
LIBRARIES & ARCHIVE,Education-Library Books,Amazon UK Marketplace,01/06/2017,3.54
LIBRARIES & ARCHIVE,Education-Library Books,Amazon UK Marketplace,01/06/2017,19.18
LIBRARIES & ARCHIVE,Education-Library Books,Amazon UK Marketplace,01/06/2017,20.94
LIBRARIES & ARCHIVE,Education-Library Books,Amazon UK Marketplace,01/06/2017,6.72
LIBRARIES & ARCHIVE,Education-Library Books,Amazon UK Marketplace,01/06/2017,6.19
LIBRARIES & ARCHIVE,Education-Library Books,Amazon UK Marketplace,01/06/2017,2.81
LIBRARIES & ARCHIVE,Education-Library Books,Amazon UK Marketplace,01/06/2017,16.50
LIBRARIES & ARCHIVE,Education-Library Books,Amazon UK Marketplace,01/06/2017,30.83
LIBRARIES & ARCHIVE,Education-Library Books,Amazon UK Retail,01/06/2017,6.22
LIBRARIES & ARCHIVE,Education-Library Books,W & G FOYLE LTD,01/06/2017,19.50
LIBRARIES & ARCHIVE,Education-Other,C I E - GROUP LTD,01/06/2017,41.76
MENTAL HEALTH,Financial Services,CASH ADVANCE FEE,01/06/2017,14.75
MENTAL HEALTH,Financial Services,CASH ADVANCE FEE,01/06/2017,2.95
MENTAL HEALTH,Financial Services,NATWEST BANK /,01/06/2017,500.00
MENTAL HEALTH,Financial Services,NATWEST BANK /,01/06/2017,100.00
MENTAL HEALTH,Legal Services-Other,HMCOURTS-SERVICE.G,01/06/2017,20.00
MENTAL HEALTH,Legal Services-Other,HMCOURTS-SERVICE.G,01/06/2017,40.00
MENTAL HEALTH,Legal Services-Other,HMCOURTS-SERVICE.G,01/06/2017,60.00
MENTAL HEALTH,Legal Services-Other,HMCOURTS-SERVICE.G,01/06/2017,60.00
MENTAL HEALTH,Legal Services-Other,HMCOURTS-SERVICE.G,01/06/2017,40.00
MENTAL HEALTH,Legal Services-Other,HMCOURTS-SERVICE.G,01/06/2017,60.00
MENTAL HEALTH,Legal Services-Other,HMCOURTS-SERVICE.G,01/06/2017,40.00
MENTAL HEALTH,Legal Services-Other,HMCOURTS-SERVICE.G,01/06/2017,20.00
MENTAL HEALTH,Taxi Fares,WWW.ADDISONLEE.COM,01/06/2017,306.15
MENTAL HEALTH,Travel/Subsistence,LONDON & SOUTH EAS,01/06/2017,29.60
MENTAL HEALTH,Travel/Subsistence,OYSTER AUTOTOPUP,01/06/2017,20.00
MENTAL HEALTH,Travel/Subsistence,OYSTER AUTOTOPUP,01/06/2017,20.00
NEIGHBOURHOODS,Building-General,FORTRESS MASTER LOCKSMITH,01/06/2017,58.84
NEIGHBOURHOODS,Utilities,BG UK BUSINESS,01/06/2017,144.00
POLICY & COMMUNICATIONS,Arts & Leisure Services,Amazon UK Marketplace,01/06/2017,39.99
POLICY & COMMUNICATIONS,Taxi Fares,ABBEY CARS FELTHAM,01/06/2017,10.70
POLICY & COMMUNICATIONS,Taxi Fares,ABBEY CARS FELTHAM,01/06/2017,7.49
REVENUE & BENEFITS,Legal Services-Other,HMCOURTS-SERVICE.G,01/06/2017,"8,586.00"
REVENUE & BENEFITS,Travel/Subsistence,OYSTER AUTOTOPUP,01/06/2017,20.00
YOUTH OFFENDING SERVICE,Accommodation,PREMIER INN44531610,01/06/2017,111.65
YOUTH OFFENDING SERVICE,Travel/Subsistence,VIRGIN TRAINS,01/06/2017,169.80
CHILDREN LOOKED AFTER,Accommodation,Hotel on Booking.com,02/06/2017,71.00
CHILDREN LOOKED AFTER,Arts & Leisure Services,THORPE PARK,02/06/2017,59.98
CHILDREN LOOKED AFTER,Domestic Goods-Other,AO RETAIL LIMITED,02/06/2017,684.16
CHILDREN LOOKED AFTER,Domestic Goods-Other,WWW.ARGOS.CO.UK,02/06/2017,103.97
CHILDREN LOOKED AFTER,Domestic Goods-Other,ARGOS DIRECT,02/06/2017,-212.99
CHILDREN LOOKED AFTER,Domestic Goods-Other,CURRYS ONLINE,02/06/2017,179.98
CHILDREN LOOKED AFTER,Education-Other,ACCOMMODATION,02/06/2017,973.70
CHILDREN LOOKED AFTER,Financial Services,GRO HM PASSPORT OFFICE,02/06/2017,9.25
CHILDREN LOOKED AFTER,Financial Services,HM PASSPORT OFFICE,02/06/2017,95.00
CHILDREN LOOKED AFTER,Financial Services,RB KEN&CHELSEA,02/06/2017,121.79
CHILDREN LOOKED AFTER,Professional & Advisory Services,COMPARE THE MAN AND VA,02/06/2017,14.90
CHILDREN LOOKED AFTER,Travel/Subsistence,EASYJET ESBZ7LK,02/06/2017,89.13
CHILDREN SAFEGUARDING & ASSESSMENTS,Financial Services,GRO HM PASSPORT OFFICE,02/06/2017,18.50
CHILDREN SAFEGUARDING & ASSESSMENTS,Travel/Subsistence,TFL OYST PHOTOCARD,02/06/2017,10.00
CORPORATE AFFAIRS,Stationery,OFFICE DEPOT UK LTD,02/06/2017,"1,125.12"
CORPORATE AFFAIRS,Stationery,OFFICE DEPOT UK LTD,02/06/2017,1.91
CORPORATE AFFAIRS,Stationery,OFFICE DEPOT UK LTD,02/06/2017,49.61
CORPORATE AFFAIRS,Stationery,POST OFFICE SHOP,02/06/2017,113.76
CORPORATE AFFAIRS,Stationery,WWW.AALABELS.COM,02/06/2017,19.27
HOUSING MANAGEMENT SERVICES,Building-Electrical,ESSEX ELECTRICAL WHOLE,02/06/2017,20.24
HOUSING MANAGEMENT SERVICES,IT Consumables,"INFOGRAM SOFTWARE, INC.",02/06/2017,144.28
LIBRARIES & ARCHIVE,Books/Publications/Resources,SAINSBURYS CASH,03/06/2017,150.00
OTHER - ADULTS,Education-Other,Amazon Prime,03/06/2017,7.99
FINANCIAL PLANNING AND MANAGEMENT,Travel/Subsistence,OYSTER AUTOTOPUP,04/06/2017,20.00
CORPORATE AFFAIRS,Stationery,OFFICE DEPOT UK LTD,05/06/2017,72.08
CORPORATE AFFAIRS,Stationery,OFFICE DEPOT UK LTD,05/06/2017,116.04
DAY CENTRES,Financial Services,NATWEST BANK /,05/06/2017,250.00
EARLY HELP,Books/Publications/Resources,Amazon UK Marketplace,05/06/2017,7.99
EARLY HELP,Books/Publications/Resources,Amazon UK Marketplace,05/06/2017,89.98
LIBRARIES & ARCHIVE,Books/Publications/Resources,CASH ADVANCE FEE,05/06/2017,4.43
NEIGHBOURHOODS,Horticultural-Other,PITCHCARE ONLINE,05/06/2017,158.50
OTHER - ADULTS,Catering Food & Drink,TESCO STORES 5999,05/06/2017,62.97
OTHER - ADULTS,Catering Food & Drink,TESCO STORES 5999,05/06/2017,64.07
OTHER - ADULTS,Domestic Goods-Other,AMAZON.CO.UK,05/06/2017,59.00
BUSINESS TRANSFORMATION,Consultancy-Business,EB *INTEGRATE 2017,06/06/2017,"1,264.66"
BUSINESS TRANSFORMATION,IT Consumables,WP-APMG-BB,06/06/2017,110.25
BUSINESS TRANSFORMATION,IT Software,MAPBOX,06/06/2017,48.00
DAY CENTRES,Domestic Goods-Other,AMAZON.CO.UK,06/06/2017,1.30
DAY CENTRES,Financial Services,CASH ADVANCE FEE,06/06/2017,7.38
DAY CENTRES,Travel/Subsistence,OYSTER RENEW WEB,06/06/2017,20.00
EARLY HELP,Use of Public Transport,LUL TICKET MACHINE,06/06/2017,25.00
EARLY HELP,Use of Public Transport,LUL TICKET MACHINE,06/06/2017,35.00
FINANCIAL PLANNING AND MANAGEMENT,Use of Public Transport,LUL TICKET MACHINE,06/06/2017,30.00
MENTAL HEALTH,Healthcare Services,STOCKPORT M B C,06/06/2017,400.00
MENTAL HEALTH,Taxi Fares,WWW.ADDISONLEE.COM,06/06/2017,13.35
NEIGHBOURHOODS,Horticultural-Other,TOWN END (LEEDS),06/06/2017,150.00
BALANCE SHEET,Personal,CURRYS ONLINE,07/06/2017,-0.02
CHILDREN LOOKED AFTER,Domestic Goods-Other,ARGOS RETAIL GROUP,07/06/2017,577.88
CHILDREN LOOKED AFTER,Domestic Goods-Other,CURRYS ONLINE,07/06/2017,470.80
CHILDREN LOOKED AFTER,Education-Other,PARTRIDGE & PRINT,07/06/2017,378.00
CHILDREN LOOKED AFTER,Facilities-Storage,SAFESTORE LIMITED,07/06/2017,888.70
CHILDREN LOOKED AFTER,Financial Services,IPS DURHAM CONTACT CTR,07/06/2017,26.50
CHILDREN LOOKED AFTER,Financial Services,GRO HM PASSPORT OFFICE,07/06/2017,-18.50
CHILDREN LOOKED AFTER,Financial Services,HM PASSPORT,07/06/2017,90.00
CHILDREN LOOKED AFTER,Financial Services,HM PASSPORT OFFICE,07/06/2017,72.50
CHILDREN LOOKED AFTER,Financial Services,THE HOME OFFICE,07/06/2017,237.00
CHILDREN LOOKED AFTER,Furniture-Domestic Furniture,UKSOFALTD,07/06/2017,484.00
CHILDREN LOOKED AFTER,Legal Services-General Support,BINDMANS LLP,07/06/2017,"2,722.00"
CHILDREN LOOKED AFTER,Travel/Subsistence,EUROSTAR INTERNET,07/06/2017,254.00
CHILDREN LOOKED AFTER,Travel/Subsistence,EASYJET 000ESD11H6,07/06/2017,118.13
CHILDREN SAFEGUARDING & ASSESSMENTS,Facilities-Printing,Amazon UK Retail,07/06/2017,8.50
DAY CENTRES,Domestic Goods-Other,Amazon UK Marketplace,07/06/2017,1.38
DAY CENTRES,Domestic Goods-Other,Amazon UK Marketplace,07/06/2017,1.30
DAY CENTRES,Domestic Goods-Other,Amazon UK Marketplace,07/06/2017,31.39
DAY CENTRES,Education-Arts/Crafts,Amazon UK Marketplace,07/06/2017,9.98
FINANCIAL PLANNING AND MANAGEMENT,Travel/Subsistence,OYSTER AUTOTOPUP,07/06/2017,20.00
FINANCIAL PLANNING AND MANAGEMENT,Use of Public Transport,LUL TICKET MACHINE,07/06/2017,10.00
LIBRARIES & ARCHIVE,Education-Library Books,Amazon UK Marketplace,07/06/2017,8.95
NEIGHBOURHOODS,Building-Plumbing,PLUMBASE LTD,07/06/2017,14.40
NEIGHBOURHOODS,Building-Plumbing,SCREWFIX DIRECT,07/06/2017,25.30
NEIGHBOURHOODS,Building-Timber,SCREWFIX,07/06/2017,21.32
NEIGHBOURHOODS,Use of Public Transport,LUL TICKET MACHINE,07/06/2017,50.00
DAY CENTRES,Travel/Subsistence,OYSTER RENEW WEB,08/06/2017,20.00
EARLY HELP,Books/Publications/Resources,Amazon UK Marketplace,08/06/2017,89.98
EARLY HELP,Books/Publications/Resources,IKEA ONLINE,08/06/2017,160.50
LIBRARIES & ARCHIVE,Education-Library Books,AMAZON.CO.UK,08/06/2017,2.81
LIBRARIES & ARCHIVE,Education-Library Books,Amazon UK Marketplace,08/06/2017,8.75
LIBRARIES & ARCHIVE,Education-Library Books,Amazon UK Marketplace,08/06/2017,29.77
LIBRARIES & ARCHIVE,Education-Library Books,Amazon UK Retail,08/06/2017,18.99
NEIGHBOURHOODS,Building-General,SCREWFIX,08/06/2017,112.87
NEIGHBOURHOODS,Building-Timber,SCREWFIX,08/06/2017,50.70
NEIGHBOURHOODS,Travel/Subsistence,TFL ROAD CHARGE,08/06/2017,11.50
NEIGHBOURHOODS,Vehicle Parts,DENNIS EAGLE LTD,08/06/2017,22.26
SCHOOL & EDUCATION IMPROVEMENT SERVICE,Education-Other,UCLONLINESTORE,08/06/2017,80.00
DAY CENTRES,Catering Food & Drink,ICELAND,09/06/2017,82.78
DAY CENTRES,Vehicle Parts,LBL NOT PRESENT,09/06/2017,10.17
NEIGHBOURHOODS,Building-Plumbing,B & Q 1009,09/06/2017,60.51
NEIGHBOURHOODS,Domestic Goods-Other,AMAZON.CO.UK,09/06/2017,14.36
NEIGHBOURHOODS,Domestic Goods-Other,Amazon UK Marketplace,09/06/2017,9.98
REVENUE & BENEFITS,Books/Publications/Resources,THE KNOWLEDGE ACADEMY,09/06/2017,938.51
POLICY & COMMUNICATIONS,Arts & Leisure Services,AMZ*Amazon.co.uk,11/06/2017,-39.95
POLICY & COMMUNICATIONS,Arts & Leisure Services,Amazon UK Marketplace,11/06/2017,79.94
POLICY & COMMUNICATIONS,Arts & Leisure Services,Amazon UK Marketplace,11/06/2017,129.99
POLICY & COMMUNICATIONS,Consultancy-Business,HOOTSUITE MEDIA INC.,11/06/2017,5.86
POLICY & COMMUNICATIONS,Facilities-Advertising,FACEBK QSWEYBJS62,11/06/2017,36.65
POLICY & COMMUNICATIONS,Facilities-Design & Photography,APPLE ONLINE STORE GBP,11/06/2017,29.95
POLICY & COMMUNICATIONS,Facilities-Design & Photography,Amazon UK Marketplace,11/06/2017,217.22
POLICY & COMMUNICATIONS,Facilities-Design & Photography,Amazon UK Marketplace,11/06/2017,28.81
POLICY & COMMUNICATIONS,IT Hardware,Amazon UK Marketplace,11/06/2017,178.32
POLICY & COMMUNICATIONS,IT Hardware,SCAN COMPUTERS INT LTD,11/06/2017,29.48
POLICY & COMMUNICATIONS,IT Services,NATIONBUILDER,11/06/2017,47.28
POLICY & COMMUNICATIONS,IT Services,PANTHEON,11/06/2017,20.04
POLICY & COMMUNICATIONS,IT Services,PANTHEON,11/06/2017,20.03
QUALITY ASSURANCE & PERFORMANCE,Catering Food & Drink,SAINSBURYS S/MKTS,11/06/2017,17.55
QUALITY ASSURANCE & PERFORMANCE,Travel/Subsistence,OYSTER AUTOTOPUP,11/06/2017,40.00
QUALITY ASSURANCE & PERFORMANCE,Travel/Subsistence,OYSTER AUTOTOPUP,11/06/2017,40.00
QUALITY ASSURANCE & PERFORMANCE,Travel/Subsistence,OYSTER AUTOTOPUP,11/06/2017,40.00
QUALITY ASSURANCE & PERFORMANCE,Travel/Subsistence,OYSTER AUTOTOPUP,11/06/2017,40.00
QUALITY ASSURANCE & PERFORMANCE,Travel/Subsistence,OYSTER AUTOTOPUP,11/06/2017,80.00
QUALITY ASSURANCE & PERFORMANCE,Travel/Subsistence,OYSTER BUS AUTOTOP,11/06/2017,40.00
QUALITY ASSURANCE & PERFORMANCE,Travel/Subsistence,OYSTER BUS AUTOTOP,11/06/2017,40.00
QUALITY ASSURANCE & PERFORMANCE,Travel/Subsistence,TRAINLINE,11/06/2017,-24.90
DAY CENTRES,Financial Services,NATWEST BANK /,12/06/2017,250.00
EARLY HELP,Books/Publications/Resources,FORTRESS MASTER LOCKSMITH,12/06/2017,15.25
EARLY HELP,Books/Publications/Resources,TESCO STORE 2143,12/06/2017,13.00
FINANCIAL PLANNING AND MANAGEMENT,Domestic Goods-Other,WWW.ARGOS.CO.UK,12/06/2017,80.93
HOUSING MANAGEMENT SERVICES,Catering Food & Drink,ASDA STORES LTD 5871,12/06/2017,9.69
INTERNAL AUDIT,Financial Services,L B CAMDEN INT,12/06/2017,11.00
INTERNAL AUDIT,Travel/Subsistence,OYSTER AUTOTOPUP,12/06/2017,40.00
LIBRARIES & ARCHIVE,Education-Other,POUNDLAND LTD 1203,12/06/2017,4.17
NEIGHBOURHOODS,Use of Public Transport,LUL TICKET MACHINE,12/06/2017,99.60
DAY CENTRES,Financial Services,ROYAL BANK UK /,13/06/2017,400.00
DAY CENTRES,Financial Services,CASH ADVANCE FEE,13/06/2017,7.38
HUMAN RESOURCES & ORGANISATIONAL DEVELOPMENT,Conference Expenses,EB *NATIONAL AMHP LEAD,13/06/2017,50.00
LIBRARIES & ARCHIVE,Education-Library Books,Amazon UK Marketplace,13/06/2017,3.38
NEIGHBOURHOODS,Building-General,SCREWFIX,13/06/2017,177.80
NEIGHBOURHOODS,Travel/Subsistence,GOV.UK/DART-CHARGE,13/06/2017,3.00
NEIGHBOURHOODS,Travel/Subsistence,TFL ROAD CHARGE,13/06/2017,11.50
NEIGHBOURHOODS,Travel/Subsistence,TFL ROAD CHARGE,13/06/2017,57.50
CORPORATE AFFAIRS,Catering Food & Drink,WAITROSE 598,14/06/2017,52.83
CORPORATE AFFAIRS,Stationery,WWW.WATERSTONESGIFTCAR,14/06/2017,244.30
CORPORATE AFFAIRS,Travel/Subsistence,LUL TICKET MACHINE,14/06/2017,50.00
CORPORATE AFFAIRS,Travel/Subsistence,LUL TICKET MACHINE,14/06/2017,100.00
CORPORATE AFFAIRS,Travel/Subsistence,NEW SOUTHERN RAILW,14/06/2017,58.20
CORPORATE AFFAIRS,Travel/Subsistence,OYSTER ISSUE WEB,14/06/2017,55.00
DAY CENTRES,Catering Food & Drink,TESCO STORE 2764,14/06/2017,99.88
DAY CENTRES,Domestic Goods-Other,Amazon UK Marketplace,14/06/2017,5.99
DAY CENTRES,Financial Services,CASH ADVANCE FEE,14/06/2017,11.80
LIBRARIES & ARCHIVE,Books/Publications/Resources,AMAZON.CO.UK,14/06/2017,6.34
LIBRARIES & ARCHIVE,Domestic Goods-Other,Amazon UK Marketplace,14/06/2017,26.87
LIBRARIES & ARCHIVE,Education-Other,Amazon UK Marketplace,14/06/2017,28.52
MENTAL HEALTH,Legal Services-Other,HMCOURTS-SERVICE.G,14/06/2017,60.00
MENTAL HEALTH,Legal Services-Other,HMCOURTS-SERVICE.G,14/06/2017,60.00
MENTAL HEALTH,Legal Services-Other,HMCOURTS-SERVICE.G,14/06/2017,40.00
MENTAL HEALTH,Legal Services-Other,HMCOURTS-SERVICE.G,14/06/2017,60.00
MENTAL HEALTH,Legal Services-Other,HMCOURTS-SERVICE.G,14/06/2017,40.00
MENTAL HEALTH,Travel/Subsistence,LONDON & SOUTH EAS,14/06/2017,73.00
MENTAL HEALTH,Travel/Subsistence,OYSTER AUTOTOPUP,14/06/2017,20.00
NEIGHBOURHOODS,Consultancy-Business,FORTRESS MASTER LOCKSMITH,14/06/2017,19.02
CHIEF EXECUTIVE'S OFFICE,Travel/Subsistence,TRAINLINE,15/06/2017,88.43
CHIEF EXECUTIVE'S OFFICE,Travel/Subsistence,TRAINLINE,15/06/2017,87.41
CHILDREN LOOKED AFTER,Education-Library Books,STATIONERY OFFICE BOOK,15/06/2017,12.99
CHILDREN LOOKED AFTER,Facilities-Storage,KATOR STORAGE LTD,15/06/2017,112.84
CHILDREN LOOKED AFTER,Financial Services,GRO HM PASSPORT OFFICE,15/06/2017,55.50
CHILDREN LOOKED AFTER,Financial Services,GRO HM PASSPORT OFFICE,15/06/2017,18.50
CHILDREN LOOKED AFTER,Financial Services,HM PASSPORT OFFICE,15/06/2017,72.50
CHILDREN LOOKED AFTER,Financial Services,LAMBETH INTERNET PAYM,15/06/2017,508.25
CHILDREN LOOKED AFTER,Horticultural-Other,WWW.PRESTIGEFLOWERS.CO.U,15/06/2017,31.29
CHILDREN LOOKED AFTER,Travel/Subsistence,FLYBE.COM B6SQX0,15/06/2017,110.98
CHILDREN LOOKED AFTER,Travel/Subsistence,EUROSTAR INTERNET,15/06/2017,289.00
DAY CENTRES,Education-Other,Amazon UK Marketplace,15/06/2017,19.98
LIBRARIES & ARCHIVE,Education-Library Books,AMAZON.CO.UK,15/06/2017,2.81
LIBRARIES & ARCHIVE,Education-Library Books,Amazon UK Marketplace,15/06/2017,31.08
LIBRARIES & ARCHIVE,Education-Library Books,Amazon UK Marketplace,15/06/2017,4.18
LIBRARIES & ARCHIVE,Education-Library Books,Amazon UK Marketplace,15/06/2017,34.47
LIBRARIES & ARCHIVE,Education-Library Books,Amazon UK Marketplace,15/06/2017,30.76
LIBRARIES & ARCHIVE,Travel/Subsistence,VIRGIN TRAINS,15/06/2017,167.80
QUALITY ASSURANCE & PERFORMANCE,Childcare Services,LOVE2SHOP.CO.UK,15/06/2017,43.50
QUALITY ASSURANCE & PERFORMANCE,Travel/Subsistence,OYSTER BUS AUTOTOP,15/06/2017,40.00
QUALITY ASSURANCE & PERFORMANCE,Travel/Subsistence,TRAINLINE,15/06/2017,40.80
QUALITY ASSURANCE & PERFORMANCE,Travel/Subsistence,TRAINLINE,15/06/2017,93.84
QUALITY ASSURANCE & PERFORMANCE,Travel/Subsistence,TRAINLINE,15/06/2017,115.67
REVENUE & BENEFITS,Travel/Subsistence,OYSTER AUTOTOPUP,15/06/2017,20.00
SENIOR MANAGEMENT - ADULTS & PUBLIC HEALTH,Taxi Fares,WWW.ADDISONLEE.COM,15/06/2017,32.30
DAY CENTRES,Catering Food & Drink,ICELAND,16/06/2017,62.51
FINANCIAL PLANNING AND MANAGEMENT,Domestic Goods-Other,WWW.ARGOS.CO.UK,16/06/2017,447.43
LIBRARIES & ARCHIVE,Education-Supplies,Amazon UK Retail,16/06/2017,15.82
NEIGHBOURHOODS,Horticultural-Other,JOSEPH ROCHFORD GARDEN,16/06/2017,79.20
NEIGHBOURHOODS,Stationery,WWW.OFFICEMONSTER.,16/06/2017,250.92
REVENUE & BENEFITS,Use of Public Transport,OYSTER BUS AUTOTOP,16/06/2017,20.00
LIBRARIES & ARCHIVE,Domestic Goods-Other,ARGOS LTD,18/06/2017,15.96
CHILDREN LOOKED AFTER,Financial Services,HM PASSPORT OFFICE,19/06/2017,46.00
CORPORATE AFFAIRS,Taxi Fares,WWW.ADDISONLEE.COM,19/06/2017,36.30
DAY CENTRES,Catering Food & Drink,TESCO STORE 2764,19/06/2017,167.26
EARLY HELP,Books/Publications/Resources,WWW.ARGOS.CO.UK,19/06/2017,276.88
LIBRARIES & ARCHIVE,Education-Library Books,Amazon UK Marketplace,19/06/2017,26.80
OTHER - ADULTS,Catering Food & Drink,TESCO STORES 5999,19/06/2017,74.56
OTHER - ADULTS,Catering Food & Drink,TESCO STORES 5999,19/06/2017,57.70
OTHER - ADULTS,Domestic Goods-Other,AMAZON.CO.UK,19/06/2017,25.98
OTHER - ADULTS,Domestic Goods-Other,AMAZON.CO.UK,19/06/2017,17.49
OTHER - ADULTS,Education-Other,CITY LIT,19/06/2017,181.00
POLICY & COMMUNICATIONS,Banquet & Catering,MARKS&SPENCER PLC SACA,19/06/2017,16.00
POLICY & COMMUNICATIONS,Travel/Subsistence,TFL ROAD CHARGE,19/06/2017,25.50
CHILDREN LOOKED AFTER,Travel/Subsistence,SACKVILLE TRAVELSERVIC,20/06/2017,"1,081.20"
FINANCIAL PLANNING AND MANAGEMENT,Use of Public Transport,LUL TICKET MACHINE,20/06/2017,50.00
LIBRARIES & ARCHIVE,Building-Others,FORTRESS MASTER LOCKSMITH,20/06/2017,52.50
REVENUE & BENEFITS,Legal Services-Other,HIGHCOURT ENFRCMT GRP LT,20/06/2017,"16,426.78"
SCHOOL & EDUCATION IMPROVEMENT SERVICE,Domestic Goods-Other,Amazon UK Marketplace,20/06/2017,14.29
"PLANNING, TRANSPORT & DEVELOPMENT",Travel/Subsistence,LUL TICKET MACHINE,21/06/2017,60.00
REVENUE & BENEFITS,Conference Expenses,COLLPUBLICSPEAKING,21/06/2017,894.00
DAY CENTRES,Financial Services,ROYAL BANK UK /,22/06/2017,400.00
FINANCIAL PLANNING AND MANAGEMENT,Use of Public Transport,THE CHILTERN RLYWY,22/06/2017,49.00
NEIGHBOURHOODS,Horticultural-Other,PITCHCARE ONLINE,22/06/2017,158.50
CORPORATE AFFAIRS,Travel/Subsistence,LUL TICKET MACHINE,23/06/2017,50.00
CORPORATE AFFAIRS,Use of Public Transport,VIRGINTRAINSEC SERVCS,23/06/2017,17.00
CORPORATE AFFAIRS,Use of Public Transport,VIRGINTRAINSEC SERVCS,23/06/2017,89.00
DAY CENTRES,Catering Food & Drink,ICELAND,23/06/2017,105.86
DAY CENTRES,Education-Other,WP-THE VIRTUAL COL,23/06/2017,145.80
DAY CENTRES,Education-Other,WP-THE VIRTUAL COL,23/06/2017,145.80
DAY CENTRES,Financial Services,CASH ADVANCE FEE,23/06/2017,7.38
DAY CENTRES,Financial Services,HSBC/STREATHM HILL,23/06/2017,250.00
DAY CENTRES,Financial Services,NATWEST BANK /,23/06/2017,200.00
DAY CENTRES,Travel/Subsistence,OYSTER BUS AUTOTOP,23/06/2017,20.00
HOUSING MANAGEMENT SERVICES,Use of Public Transport,BRIX CENTRAL STOP,23/06/2017,100.00
HOUSING MANAGEMENT SERVICES,Use of Public Transport,LUL TICKET MACHINE,23/06/2017,100.00
LIBRARIES & ARCHIVE,Education-Library Books,AMAZON.CO.UK,23/06/2017,7.12
LIBRARIES & ARCHIVE,Education-Library Books,AMAZON.CO.UK,23/06/2017,5.10
LIBRARIES & ARCHIVE,Education-Library Books,Amazon UK Marketplace,23/06/2017,17.54
LIBRARIES & ARCHIVE,Education-Library Books,Amazon UK Marketplace,23/06/2017,39.45
LIBRARIES & ARCHIVE,Education-Library Books,Amazon UK Marketplace,23/06/2017,4.18
LIBRARIES & ARCHIVE,Education-Library Books,AMAZON.CO.UK,23/06/2017,3.85
LIBRARIES & ARCHIVE,Education-Library Books,Amazon UK Marketplace,23/06/2017,2.81
LIBRARIES & ARCHIVE,Education-Library Books,Amazon UK Retail,23/06/2017,9.69
LIBRARIES & ARCHIVE,Education-Other,IRISH POST,23/06/2017,71.00
INTERNAL AUDIT,Travel/Subsistence,OYSTER AUTOTOPUP,24/06/2017,20.00
INTERNAL AUDIT,Travel/Subsistence,OYSTER AUTOTOPUP,24/06/2017,40.00
INTERNAL AUDIT,Travel/Subsistence,OYSTER BUS AUTOTOP,24/06/2017,40.00
INTERNAL AUDIT,Travel/Subsistence,OYSTER BUS AUTOTOP,24/06/2017,40.00
LIBRARIES & ARCHIVE,Education-Library Books,AMAZON MKTPLACE PMTS,24/06/2017,136.50
MENTAL HEALTH,Legal Services-Other,HMCOURTS-SERVICE.G,24/06/2017,60.00
MENTAL HEALTH,Legal Services-Other,HMCOURTS-SERVICE.G,24/06/2017,60.00
MENTAL HEALTH,Travel/Subsistence,OYSTER AUTOTOPUP,24/06/2017,20.00
POLICY & COMMUNICATIONS,IT Services,123 REG R/T,24/06/2017,14.99
POLICY & COMMUNICATIONS,IT Services,FACEBK VT8E5CES62,24/06/2017,40.02
EMPLOYMENT & ENTERPRISE - E&L,Catering Food & Drink,SAINSBURYS S/MKTS,25/06/2017,4.00
EMPLOYMENT & ENTERPRISE - E&L,Travel/Subsistence,OYSTER AUTOTOPUP,25/06/2017,20.00
EMPLOYMENT & ENTERPRISE - E&L,Travel/Subsistence,OYSTER AUTOTOPUP,25/06/2017,20.00
EMPLOYMENT & ENTERPRISE - E&L,Travel/Subsistence,OYSTER AUTOTOPUP,25/06/2017,20.00
EMPLOYMENT & ENTERPRISE - E&L,Travel/Subsistence,OYSTER AUTOTOPUP,25/06/2017,20.00
EMPLOYMENT & ENTERPRISE - E&L,Travel/Subsistence,OYSTER BUS AUTOTOP,25/06/2017,20.00
LIBRARIES & ARCHIVE,Education-Library Books,AMAZON.CO.UK,25/06/2017,14.04
LIBRARIES & ARCHIVE,Education-Library Books,AMZ*Bahamut Media Grou,25/06/2017,-7.45
LIBRARIES & ARCHIVE,Education-Library Books,Amazon UK Marketplace,25/06/2017,13.73
LIBRARIES & ARCHIVE,Education-Library Books,Amazon UK Marketplace,25/06/2017,18.31
LIBRARIES & ARCHIVE,Education-Library Books,Amazon UK Marketplace,25/06/2017,9.79
LIBRARIES & ARCHIVE,Education-Library Books,Amazon UK Retail,25/06/2017,38.80
DAY CENTRES,Financial Services,CASH ADVANCE FEE,26/06/2017,5.90
HOUSING MANAGEMENT SERVICES,Accommodation,EURO ( QUEENS HOTEL ),26/06/2017,59.00
HOUSING MANAGEMENT SERVICES,Catering Food & Drink,SAINSBURY'S S/MKT,26/06/2017,44.00
HOUSING MANAGEMENT SERVICES,Travel/Subsistence,NEW SOUTHERN RAILW,26/06/2017,380.00
LIBRARIES & ARCHIVE,Books/Publications/Resources,SAINSBURYS CASH,26/06/2017,160.00
LIBRARIES & ARCHIVE,Education-Library Books,AMAZON MKTPLACE PMTS,26/06/2017,10.40
FINANCIAL PLANNING AND MANAGEMENT,Use of Public Transport,LUL TICKET MACHINE,27/06/2017,20.00
FINANCIAL PLANNING AND MANAGEMENT,Use of Public Transport,LUL TICKET MACHINE,27/06/2017,20.00
LIBRARIES & ARCHIVE,Books/Publications/Resources,CASH ADVANCE FEE,27/06/2017,4.72
NEIGHBOURHOODS,Domestic Goods-Other,Amazon UK Marketplace,27/06/2017,57.30
NEIGHBOURHOODS,Stationery,AMAZON.CO.UK,27/06/2017,82.99
YOUTH OFFENDING SERVICE,IT Services,Amazon Prime,27/06/2017,7.99
YOUTH OFFENDING SERVICE,IT Services,Amazon Prime,27/06/2017,-7.99
YOUTH OFFENDING SERVICE,Mail Services-Postage,POST OFFICE COUNTER,27/06/2017,1.75
YOUTH OFFENDING SERVICE,Travel/Subsistence,BRIXTONHILL EXPRESS,27/06/2017,250.00
YOUTH OFFENDING SERVICE,Travel/Subsistence,VIRGINTRAINS.CO.UK,27/06/2017,-157.80
CHILDREN LOOKED AFTER,Domestic Goods-Other,ARGOS RETAIL GROUP,28/06/2017,39.99
CHILDREN LOOKED AFTER,Domestic Goods-Other,ARGOS RETAIL GROUP,28/06/2017,82.96
CHILDREN LOOKED AFTER,Domestic Goods-Other,CURRYS SUPERSTORE,28/06/2017,110.00
CHILDREN LOOKED AFTER,Furniture-Domestic Furniture,AO RETAIL LIMITED,28/06/2017,672.49
CHILDREN LOOKED AFTER,Furniture-Domestic Furniture,CURRYS ONLINE,28/06/2017,55.00
CHILDREN LOOKED AFTER,Furniture-Domestic Furniture,IKEA ONLINE,28/06/2017,499.00
CHILDREN LOOKED AFTER,Haulage,ANYVAN,28/06/2017,40.00
CHILDREN LOOKED AFTER,Legal Services-General Support,HM PASSPORT OFFICE,28/06/2017,164.50
CHILDREN LOOKED AFTER,Legal Services-General Support,GRO HM PASSPORT OFFICE,28/06/2017,9.25
CHILDREN LOOKED AFTER,Legal Services-General Support,HMCOURTS-SERVICE.G,28/06/2017,50.00
CHILDREN LOOKED AFTER,Travel/Subsistence,FLYBE BESVEG,28/06/2017,211.11
CORPORATE AFFAIRS,Stationery,OFFICE DEPOT UK LTD,28/06/2017,95.04
LIBRARIES & ARCHIVE,Travel/Subsistence,OYSTER BUS AUTOTOP,28/06/2017,40.00
NEIGHBOURHOODS,Building-Paint,SENATOR DEVELOPMEN,28/06/2017,7.48
NEIGHBOURHOODS,Domestic Goods-Other,LOCKFIELD SYSTEMS LTD,28/06/2017,14.72
NEIGHBOURHOODS,Stationery,NOVADATA TACHOGRAPH AN,28/06/2017,92.50
NEIGHBOURHOODS,Travel/Subsistence,TFL ROAD CHARGE,28/06/2017,57.50
REVENUE & BENEFITS,Travel/Subsistence,TRAINLINE,28/06/2017,207.67
REVENUE & BENEFITS,Travel/Subsistence,TRAINLINE,28/06/2017,86.80
REVENUE & BENEFITS,Travel/Subsistence,TRAINLINE,28/06/2017,285.60
REVENUE & BENEFITS,Travel/Subsistence,VIRGIN TRAINS,28/06/2017,225.00
REVENUE & BENEFITS,Use of Public Transport,OYSTER AUTOTOPUP,28/06/2017,20.00
DAY CENTRES,Building-Others,TESCO STORE 2764,29/06/2017,24.60
DAY CENTRES,Catering Food & Drink,TESCO STORE 2764,29/06/2017,146.94
FINANCIAL PLANNING AND MANAGEMENT,Travel/Subsistence,OYSTER AUTOTOPUP,29/06/2017,20.00
FINANCIAL PLANNING AND MANAGEMENT,Travel/Subsistence,OYSTER AUTOTOPUP,29/06/2017,20.00
FINANCIAL PLANNING AND MANAGEMENT,Travel/Subsistence,OYSTER AUTOTOPUP,29/06/2017,20.00
FINANCIAL PLANNING AND MANAGEMENT,Travel/Subsistence,OYSTER AUTOTOPUP,29/06/2017,20.00
FINANCIAL PLANNING AND MANAGEMENT,Travel/Subsistence,OYSTER AUTOTOPUP,29/06/2017,20.00
LIBRARIES & ARCHIVE,Books/Publications/Resources,AMAZON.CO.UK,29/06/2017,7.80
LIBRARIES & ARCHIVE,Domestic Goods-Other,Amazon UK Marketplace,29/06/2017,4.09
LIBRARIES & ARCHIVE,Domestic Goods-Other,Amazon UK Marketplace,29/06/2017,19.98
NEIGHBOURHOODS,Education-Other,NHBS LTD,29/06/2017,89.43
NEIGHBOURHOODS,Mail Services-Postage,POST OFFICE COUNTER,29/06/2017,6.45
DAY CENTRES,Financial Services,BRIXTON FOOD AND WINE,30/06/2017,100.00
DAY CENTRES,Travel/Subsistence,OYSTER BUS AUTOTOP,30/06/2017,20.00
FINANCIAL PLANNING AND MANAGEMENT,Conference Expenses,IDEAL TAXIS,30/06/2017,25.00
FINANCIAL PLANNING AND MANAGEMENT,Financial Services,LAND REGISTRY,30/06/2017,3.00
FINANCIAL PLANNING AND MANAGEMENT,Financial Services,LAND REGISTRY,30/06/2017,3.00
FINANCIAL PLANNING AND MANAGEMENT,Financial Services,LAND REGISTRY,30/06/2017,3.00
FINANCIAL PLANNING AND MANAGEMENT,Financial Services,LAND REGISTRY,30/06/2017,12.00
FINANCIAL PLANNING AND MANAGEMENT,Financial Services,LAND REGISTRY,30/06/2017,3.00
FINANCIAL PLANNING AND MANAGEMENT,Financial Services,LAND REGISTRY,30/06/2017,6.00
FINANCIAL PLANNING AND MANAGEMENT,Travel/Subsistence,OYSTER AUTOTOPUP,30/06/2017,40.00
NEIGHBOURHOODS,Building-General,HALFORDS 0716,30/06/2017,79.17
POLICY & COMMUNICATIONS,Travel/Subsistence,TRAINLINE,30/06/2017,102.05
